Workbook

Sheet Scenario_100%_RE
B3: Scenarios. Nationally determined contribution
D6: Installed capacity | G6: 2010 | H6: 2011 | I6: 2012 | J6: 2013 | K6: 2014 | L6: 2015 | M6: 2016 | N6: 2017 | O6: 2018 | P6: 2019 | Q6: 2020 | R6: 2021 | S6: 2022 | T6: 2023 | U6: 2024 | V6: 2025 | W6: 2026 | X6: 2027 | Y6: 2028 | Z6: 2029 | AA6: 2030
D7: Total capacity [MW] | G7: =G8+G10 -> 1288.95 | H7: 1288.95 | I7: 1444.77 | J7: 1480.17 | K7: 1719.12 | L7: 1948.18 | M7: 1972.18 | N7: =N8+N10 -> 2097.18 | O7: =O8+O10 -> 2217.18 | P7: 2386.18 | Q7: 3101.08 | R7: 3640.28 | S7: 3640.28 | T7: 3740.28 | U7: 3740.28 | V7: 5132.28 | W7: 5132.28 | X7: 5132.28 | Y7: 5132.28 | Z7: 9634.28 | AA7: 11790.28 | AB7: 13387 | AC7: =AB7-AA7 -> 1596.72
D8: Fossil fuel based [MW] | G8: =+H8-H25 -> 785.68 | H8: 785.68 | I8: 941.5 | J8: 973.9 | K8: 1198.28 | L8: 1419.74 | M8: =+N8-N25 -> 1419.74 | N8: =[16]OM_EF_2017!D22 -> 1419.74 | O8: =+N8+O25 -> 1419.74 | P8: =+O8+P25 -> 1419.74 | Q8: 1419.74 | R8: 1419.74 | S8: 1419.74 | T8: 1419.74 | U8: 1419.74 | V8: 1419.74 | W8: 1419.74 | X8: 1419.74 | Y8: 1419.74 | Z8: 1419.74 | AA8: 1419.74
D9: Fraction fossil fuels [%] | N9: =+N8/N7 -> 0.6769757484 | O9: =+O8/O7 -> 0.6403359222 | P9: 0.5949844521 | Q9: 0.4578211462 | R9: 0.3900084609 | S9: 0.3900084609 | T9: 0.3795812078 | U9: 0.3795812078 | V9: 0.2766294902 | W9: 0.2766294902 | X9: 0.2766294902 | Y9: 0.2766294902 | Z9: 0.1473633733 | AA9: 0.1204161394
D10: Renewable energy [MW] | G10: =G12+G14+G16+G18+G20 -> 503.27 | H10: 503.27 | I10: 503.27 | J10: 506.27 | K10: 520.84 | L10: 528.44 | M10: 552.44 | N10: =N12+N14+N16+N18+N20 -> 677.44 | O10: =O12+O14+O16+O18+O20 -> 797.44 | P10: 966.44 | Q10: 1681.34 | R10: 2220.54 | S10: 2220.54 | T10: 2320.54 | U10: 2320.54 | V10: 3712.54 | W10: 3712.54 | X10: 3712.54 | Y10: 3712.54 | Z10: 8214.54 | AA10: 10370.54
D11: Fraction renewable energy [%] | N11: =+N10/N7 -> 0.3230242516 | O11: =+O10/O7 -> 0.3596640778 | P11: 0.4050155479 | Q11: 0.5421788538 | R11: 0.6099915391 | S11: 0.6099915391 | T11: 0.6204187922 | U11: 0.6204187922 | V11: 0.7233705098 | W11: 0.7233705098 | X11: 0.7233705098 | Y11: 0.7233705098 | Z11: 0.8526366267 | AA11: 0.8795838606 | AB11: 0.79
D12: Hydro [MW] | G12: =+H12-H27 -> 482.27 | H12: 482.27 | I12: 482.27 | J12: 482.27 | K12: 482.27 | L12: 489.87 | M12: =+N12-N27 -> 489.87 | N12: =[16]OM_EF_2017!D90 -> 609.87 | O12: =+N12+O27 -> 664.87 | P12: =+O12+P27 -> 733.87 | Q12: 1280.77 | R12: 1774.97 | S12: 1774.97 | T12: 1774.97 | U12: 1774.97 | V12: 3166.97 | W12: 3166.97 | X12: 3166.97 | Y12: 3166.97 | Z12: 7668.97 | AA12: 9348.97
D13: Fraction hydro [%] | N13: =+N12/N10 -> 0.9002568493 | O13: =+O12/O10 -> 0.8337555177 | P13: 0.7593539175 | Q13: 0.7617555045 | R13: 0.7993416016 | S13: 0.7993416016 | T13: 0.7648952399 | U13: 0.7648952399 | V13: 0.8530467012 | W13: 0.8530467012 | X13: 0.8530467012 | Y13: 0.8530467012 | Z13: 0.9335848386 | AA13: 0.9014930756
D14: Wind [MW] | G14: =+H14-H28 -> 0 | H14: 0 | I14: 0 | J14: 3 | K14: 3 | L14: 3 | M14: =+N14-N28 -> 27 | N14: =[16]OM_EF_2017!D170 -> 27 | O14: =+N14+O28 -> 27 | P14: =+O14+P28 -> 27 | Q14: 135 | R14: 180 | S14: 180 | T14: 180 | U14: 180 | V14: 180 | W14: 180 | X14: 180 | Y14: 180 | Z14: 180 | AA14: 456
D15: Fraction wind [%] | N15: =+N14/N10 -> 0.0398559282 | O15: =+O14/O10 -> 0.03385834671 | P15: 0.02793758536 | Q15: 0.08029309955 | R15: 0.08106136345 | S15: 0.08106136345 | T15: 0.07756815224 | U15: 0.07756815224 | V15: 0.04848432609 | W15: 0.04848432609 | X15: 0.04848432609 | Y15: 0.04848432609 | Z15: 0.02191236515 | AA15: 0.04397070934
D16: Solar [MW] | G16: =+H16-H29 -> 0 | H16: 0 | I16: 0 | J16: 0 | K16: 0 | L16: 0 | M16: =+N16-N29 -> 0 | N16: 0 | O16: =+N16+O29 -> 65 | P16: =+O16+P29 -> 165 | Q16: 170 | R16: 170 | S16: 170 | T16: 170 | U16: 170 | V16: 170 | W16: 170 | X16: 170 | Y16: 170 | Z16: 170 | AA16: 370
D17: Fraction solar [%] | N17: =+N16/N10 -> 0 | O17: =+O16/O10 -> 0.08151083467 | P17: 0.1707296883 | Q17: 0.1011098291 | R17: 0.07655795437 | S17: 0.07655795437 | T17: 0.07325881045 | U17: 0.07325881045 | V17: 0.04579075242 | W17: 0.04579075242 | X17: 0.04579075242 | Y17: 0.04579075242 | Z17: 0.02069501153 | AA17: 0.03567798784
D18: Geothermal [MW] | G18: =+H18-G30 -> 0 | H18: =+I18-I30 -> 0 | I18: 0 | J18: 0 | K18: 0 | L18: 0 | M18: =+N18-N30 -> 0 | N18: 0 | O18: =+N18+O30 -> 0 | P18: =+O18+P30 -> 0 | Q18: 5 | R18: 5 | S18: 5 | T18: 105 | U18: 105 | V18: 105 | W18: 105 | X18: 105 | Y18: 105 | Z18: 105 | AA18: 105
D19: Fraction geothermal [%] | N19: =+N18/N10 -> 0 | O19: =+O18/O10 -> 0 | P19: 0 | Q19: 0.002973818502 | R19: 0.00225170454 | S19: 0.00225170454 | T19: 0.04524808881 | U19: 0.04524808881 | V19: 0.02828252356 | W19: 0.02828252356 | X19: 0.02828252356 | Y19: 0.02828252356 | Z19: 0.012782213 | AA19: 0.01012483439
D20: Biomass [MW] | G20: =+H20-H31 -> 21 | H20: 21 | I20: 21 | J20: 21 | K20: 35.57 | L20: 35.57 | M20: =+N20-N31 -> 35.57 | N20: =[16]OM_EF_2017!D162 -> 40.57 | O20: =+N20+O31 -> 40.57 | P20: =+O20+P31 -> 40.57 | Q20: 90.57 | R20: 90.57 | S20: 90.57 | T20: 90.57 | U20: 90.57 | V20: 90.57 | W20: 90.57 | X20: 90.57 | Y20: 90.57 | Z20: 90.57 | AA20: 90.57
D21: Fraction biomass [%] | N21: =+N20/N10 -> 0.05988722248 | O21: =+O20/O10 -> 0.05087530096 | P21: 0.04197880882 | Q21: 0.05386774834 | R21: 0.04078737604 | S21: 0.04078737604 | T21: 0.0390297086 | U21: 0.0390297086 | V21: 0.02439569675 | W21: 0.02439569675 | X21: 0.02439569675 | Y21: 0.02439569675 | Z21: 0.01102557173 | AA21: 0.008733392861
D23: Capacity additions | G23: 2010 | H23: 2011 | I23: 2012 | J23: 2013 | K23: 2014 | L23: 2015 | M23: 2016 | N23: 2017 | O23: 2018 | P23: 2019 | Q23: 2020 | R23: 2021 | S23: 2022 | T23: 2023 | U23: 2024 | V23: 2025 | W23: 2026 | X23: 2027 | Y23: 2028 | Z23: 2029 | AA23: 2030
D24: Total capacity additions [MW] | G24: =+G25+G26 -> 96 | H24: 0 | I24: 155.82 | J24: 35.4 | K24: 238.95 | L24: 229.06 | M24: 24 | N24: =+N25+N26 -> 125 | O24: =+O25+O26 -> 120 | P24: 169 | Q24: 714.9 | R24: 539.2 | S24: 0 | T24: 100 | U24: 0 | V24: 1392 | W24: 0 | X24: 0 | Y24: 0 | Z24: 4502 | AA24: 2156
D25: Fossil fuel based [MW] | G25: =+SUMIF($C$191:$C$258,G23,$D$191:$D$258) -> 96 | H25: 0 | I25: 155.82 | J25: 32.4 | K25: 224.38 | L25: 221.46 | M25: 0 | N25: 0 | O25: =+SUMIF($C$55:$C$78,O23,$D$55:$D$78) -> 0 | P25: 0 | Q25: 0 | R25: 0 | S25: 0 | T25: 0 | U25: 0 | V25: 0 | W25: 0 | X25: 0 | Y25: 0 | Z25: 0 | AA25: 0
D26: Renewables [MW] | G26: =+G27+G28+G29+G30+G31 -> 0 | H26: 0 | I26: 0 | J26: 3 | K26: 14.57 | L26: 7.6 | M26: 24 | N26: =+N27+N28+N29+N30+N31 -> 125 | O26: =+O27+O28+O29+O30+O31 -> 120 | P26: 169 | Q26: 714.9 | R26: 539.2 | S26: 0 | T26: 100 | U26: 0 | V26: 1392 | W26: 0 | X26: 0 | Y26: 0 | Z26: 4502 | AA26: 2156
D27: Hydro [MW] | G27: =SUMIF($C$263:$C$331,G23,$D$263:$D$331) -> 0 | H27: 0 | I27: 0 | J27: 0 | K27: 0 | L27: 7.6 | M27: 0 | N27: 120 | O27: =+SUMIF($C$83:$C$127,O23,$D$83:$D$127) -> 55 | P27: 69 | Q27: 546.9 | R27: 494.2 | S27: 0 | T27: 0 | U27: 0 | V27: 1392 | W27: 0 | X27: 0 | Y27: 0 | Z27: 4502 | AA27: 1680
D28: Wind [MW] | G28: =+SUMIF($C$345:$C$347,G23,$D$345:$D$347) -> 0 | H28: 0 | I28: 0 | J28: 3 | K28: 0 | L28: 0 | M28: 24 | N28: 0 | O28: =+SUMIF($C$133:$C$147,O23,$D$133:$D$147) -> 0 | P28: 0 | Q28: 108 | R28: 45 | S28: 0 | T28: 0 | U28: 0 | V28: 0 | W28: 0 | X28: 0 | Y28: 0 | Z28: 0 | AA28: 276
D29: Solar [MW] | G29: 0 | H29: 0 | I29: 0 | J29: 0 | K29: 0 | L29: 0 | M29: 0 | N29: 0 | O29: =+SUMIF($C$152:$C$165,O23,$D$152:$D$165) -> 65 | P29: 100 | Q29: 5 | R29: 0 | S29: 0 | T29: 0 | U29: 0 | V29: 0 | W29: 0 | X29: 0 | Y29: 0 | Z29: 0 | AA29: 200
D30: Geothermal [MW] | G30: 0 | H30: 0 | I30: 0 | J30: 0 | K30: 0 | L30: 0 | M30: 0 | N30: =+SUMIF($C$170:$C$173,N23,$D$170:$D$184) -> 0 | O30: 0 | P30: 0 | Q30: 5 | R30: 0 | S30: 0 | T30: 100 | U30: 0 | V30: 0 | W30: 0 | X30: 0 | Y30: 0 | Z30: 0 | AA30: 0
D31: Biomass [MW] | G31: =+SUMIF($C$336:$C$340,G23,$D$336:$D$340) -> 0 | H31: 0 | I31: 0 | J31: 0 | K31: 14.57 | L31: 0 | M31: 0 | N31: 5 | O31: =+SUMIF($C$178:$C$183,O23,$D$178:$D$183) -> 0 | P31: 0 | Q31: 50 | R31: 0 | S31: 0 | T31: 0 | U31: 0 | V31: 0 | W31: 0 | X31: 0 | Y31: 0 | Z31: 0 | AA31: 0
D33: Electricity demand | G33: 2010 | H33: 2011 | I33: 2012 | J33: 2013 | K33: 2014 | L33: 2015 | M33: 2016 | N33: 2017 | O33: 2018 | P33: 2019 | Q33: 2020 | R33: 2021 | S33: 2022 | T33: 2023 | U33: 2024 | V33: 2025 | W33: 2026 | X33: 2027 | Y33: 2028 | Z33: 2029 | AA33: 2030
D34: Electricity demand [MWh] | G34: 5814019.035 | H34: 6301852.262 | I34: 6604327.164 | J34: 7012819.377 | K34: 7477658.063 | L34: 7945921.687 | M34: 8377847.314 | N34: 8613743.881 | O34: 9096484.101 | P34: 9861641.278 | Q34: 10650466.03 | R34: 11767871.01 | S34: 12509304.04 | T34: 13292004.04 | U34: 14119084.04 | V34: 14992914.04 | W34: 15915934.04 | X34: 16890764.04 | Y34: 17920144.04 | Z34: 19006944.04 | AA34: 20154224.04
D35: Transmission and distribution losses [%] | O35: 0.04 | P35: 0.04 | Q35: 0.04 | R35: 0.04 | S35: 0.04 | T35: 0.04 | U35: 0.04 | V35: 0.04 | W35: 0.04 | X35: 0.04 | Y35: 0.04 | Z35: 0.04 | AA35: 0.04
D36: Total electricity demand [MWh] | G36: =+G38 -> 6085440.865 | H36: =+H38 -> 6592941.533 | I36: 6861925.926 | J36: 7286833.036 | K36: 7743488.703 | L36: 8248316.823 | M36: 8669522.259 | N36: 8890377.237 | O36: =+O34/(1-O35) -> 9475504.271 | P36: =+P34/(1-P35) -> 10272543 | Q36: 11094235.45 | R36: 12258198.97 | S36: 13030525.04 | T36: 13845837.54 | U36: 14707379.21 | V36: 15617618.79 | W36: 16579097.96 | X36: 17594545.87 | Y36: 18666816.71 | Z36: 19798900.04 | AA36: 20993983.37
D38: Total generation [MWh] | G38: =+G190+G262+G335+G344 -> 6085440.865 | H38: 6592941.533 | I38: 6861925.926 | J38: 7286833.036 | K38: 7743488.703 | L38: 8248316.823 | M38: 8669522.259 | N38: 8890377.237 | O38: =+O190+O262+O335+O344+O54+O82+O132+O151+O169 -> 9549855.457 | P38: 10217479.79 | Q38: 12118993.39 | R38: 14372124.48 | S38: 14404552.15 | T38: 15137238.3 | U38: 15134371.65 | V38: 18843226.63 | W38: 18840260.59 | X38: 18840277.15 | Y38: 18841254.79 | Z38: 37602748.19 | AA38: 46227844.19
D39: Renewable energy generation [MWh] | G39: =+G262+G335+G344 -> 2209585.15 | H39: 2388145.984 | I39: 2386578.665 | J39: 2594391.147 | K39: 2317460.239 | L39: 2530134.785 | M39: 1811708.955 | N39: 2334294.747 | O39: =+O82+O132+O151+O169+O262+O335+O344 -> 3176644.459 | P39: 3678816.595 | Q39: 6453108.595 | R39: 8755674.595 | S39: 8755674.595 | T39: 9500274.595 | U39: 9500274.595 | V39: 15597234.59 | W39: 15597234.59 | X39: 15597234.59 | Y39: 15597234.59 | Z39: 37602748.19 | AA39: 46227844.19
D40: Fraction renewable energy [%] | G40: =+G39/G38 -> 0.3630936852 | H40: =+H39/H38 -> 0.3622276903 | I40: 0.3478001207 | J40: 0.3560382315 | K40: 0.2992785716 | L40: 0.3067455869 | M40: 0.2089744857 | N40: 0.2625641956 | O40: 0.3326379622 | P40: 0.3600512719 | Q40: 0.5324789267 | R40: 0.609212271 | S40: 0.6078408065 | T40: 0.6276095021 | U40: 0.62772838 | V40: 0.8277369319 | W40: 0.8278672432 | X40: 0.8278665154 | Y40: 0.827823559 | Z40: 1 | AA40: 1
D41: Fossil fuel based generation [MWh] | G41: =+G54+G190 -> 3875855.715 | H41: 4204795.55 | I41: 4475347.261 | J41: 4692441.889 | K41: 5426028.464 | L41: 5718182.038 | M41: 6857813.304 | N41: 6556082.49 | O41: 6373210.998 | P41: 6538663.197 | Q41: 5665884.799 | R41: 5616449.888 | S41: 5648877.554 | T41: 5636963.709 | U41: 5634097.05 | V41: 3245992.032 | W41: 3243025.993 | X41: 3243042.557 | Y41: 3244020.194 | Z41: 0 | AA41: 0
D42: Fraction fossil fuels [%] | G42: =+G41/G38 -> 0.6369063148 | H42: =+H41/H38 -> 0.6377723097 | I42: 0.6521998793 | J42: 0.6439617685 | K42: 0.7007214284 | L42: 0.6932544131 | M42: 0.7910255143 | N42: 0.7374358044 | O42: 0.6673620378 | P42: 0.6399487281 | Q42: 0.4675210733 | R42: 0.390787729 | S42: 0.3921591935 | T42: 0.3723904979 | U42: 0.37227162 | V42: 0.1722630681 | W42: 0.1721327568 | X42: 0.1721334846 | Y42: 0.172176441 | Z42: 0 | AA42: 0
D43: Electricity surplus [MWh] | G43: =+G38-G36 -> 0 | H43: 0 | I43: 0 | J43: 0 | K43: 0 | L43: 0 | M43: 0 | N43: 0 | O43: 74351.18566 | P43: -55063.20578 | Q43: 1024757.942 | R43: 2113925.516 | S43: 1374027.109 | T43: 1291400.765 | U43: 426992.4391 | V43: 3225607.837 | W43: 2261162.632 | X43: 1245731.279 | Y43: 174438.0827 | Z43: 17803848.16 | AA43: 25233860.82
D45: Grid emission factor | G45: 2010 | H45: 2011 | I45: 2012 | J45: 2013 | K45: 2014 | L45: 2015 | M45: 2016 | N45: 2017 | O45: 2018 | P45: 2019 | Q45: 2020 | R45: 2021 | S45: 2022 | T45: 2023 | U45: 2024 | V45: 2025 | W45: 2026 | X45: 2027 | Y45: 2028 | Z45: 2029 | AA45: 2030
D46: Greenhouse gas emissions [tCO2e] | G46: =+[16]OM_EF_2010!H23 -> 2367600.802 | H46: =+[16]OM_EF_2011!H22 -> 2563443.554 | I46: =+[16]OM_EF_2012!H22 -> 2817609.709 | J46: =+[16]OM_EF_2013!H22 -> 2778715.357 | K46: =+[16]OM_EF_2014!H22 -> 3227014.123 | L46: =+[16]OM_EF_2015!H22 -> 3281998.242 | M46: =+[16]OM_EF_2016!H23 -> 4027512.386 | N46: =+[16]OM_EF_2017!H22 -> 3757647.583 | O46: =+SUMPRODUCT($F$191:$F$258,O191:O258)+SUMPRODUCT($F$55:$F$78,O55:O78) -> 3649126.284 | P46: =+SUMPRODUCT($F$191:$F$258,P191:P258)+SUMPRODUCT($F$55:$F$78,P55:P78) -> 3738352.473 | Q46: 3130293.774 | R46: 3100192.15 | S46: 3117677.62 | T46: 3111249.516 | U46: 3109706.429 | V46: 1717150.907 | W46: 1715550.986 | X46: =+SUMPRODUCT($F$191:$F$258,X191:X258)+SUMPRODUCT($F$55:$F$78,X55:X78) -> 1715560.458 | Y46: 1716087.451 | Z46: 0 | AA46: 0
D47: Average operting margin emission factor [tCO2e/MWh] | G47: =+'[16]Grid-EF'!H9 -> 0.3890598651 | H47: =+'[16]Grid-EF'!I9 -> 0.3888163639 | I47: =+'[16]Grid-EF'!J9 -> 0.4106149992 | J47: =+'[16]Grid-EF'!K9 -> 0.3813337486 | K47: =+'[16]Grid-EF'!L9 -> 0.4167390497 | L47: =+'[16]Grid-EF'!M9 -> 0.3978991486 | M47: =+'[16]Grid-EF'!N9 -> 0.4645598991 | N47: =+'[16]Grid-EF'!O9 -> 0.4226139263 | O47: =+O46/O38 -> 0.3821132477 | P47: =+P46/P38 -> 0.3658781372 | Q47: 0.2582965162 | R47: 0.2157086904 | S47: 0.2164369699 | T47: 0.205536139 | U47: 0.2054731112 | V47: 0.091128284 | W47: 0.09105771005 | X47: 0.09105813276 | Y47: 0.09108137806 | Z47: 0 | AA47: 0
D48: Simple operating margin emission factor [tCO2e/MWh] | G48: =+G46/G41 -> 0.6108588596 | H48: =+H46/H41 -> 0.6096476093 | I48: 0.6295845986 | J48: 0.5921683044 | K48: 0.5947285652 | L48: 0.573958335 | M48: 0.5872881351 | N48: 0.5731544088 | O48: 0.5725726459 | P48: 0.5717303921 | Q48: 0.5524810131 | R48: 0.5519842982 | S48: 0.5519109929 | T48: 0.5519371202 | U48: 0.551944065 | V48: 0.5290065073 | W48: 0.5289969891 | X48: 0.5289972081 | Y48: 0.5290002367 | AA48: 0
B50: Capacity additions 2018 - 2030
G52: 2010 | H52: 2011 | I52: 2012 | J52: 2013 | K52: 2014 | L52: 2015 | M52: 2016 | N52: 2017 | O52: 2018 | P52: 2019 | Q52: 2020 | R52: 2021 | S52: 2022 | T52: 2023 | U52: 2024 | V52: 2025 | W52: 2026 | X52: 2027 | Y52: 2028 | Z52: 2029 | AA52: 2030
B53: Plant Unit | C53: Commissioning date | D53: Capacity [MW] | E53: Capacity factor | F53: Emission factor [tCO2/MWh] | G53: Generation [MWh] | H53: Generation [MWh] | I53: Generation [MWh] | J53: Generation [MWh] | K53: Generation [MWh] | L53: Generation [MWh] | M53: Generation [MWh] | N53: Generation [MWh] | O53: Generation [MWh] | P53: Generation [MWh] | Q53: Generation [MWh] | R53: Generation [MWh] | S53: Generation [MWh] | T53: Generation [MWh] | U53: Generation [MWh] | V53: Generation [MWh] | W53: Generation [MWh] | X53: Generation [MWh] | Y53: Generation [MWh] | Z53: Generation [MWh] | AA53: Generation [MWh]
B54: Natural gas | G54: =SUM(G55:G78) -> 0 | H54: 0 | I54: 0 | J54: 0 | K54: 0 | L54: 0 | M54: 0 | N54: 0 | O54: 0 | P54: 0 | Q54: 0 | R54: 0 | S54: 0 | T54: 0 | U54: 0 | V54: 0 | W54: 0 | X54: 0 | Y54: 0 | Z54: 0 | AA54: 0
B55: Entre Ríos
B56: CCERI3 | F56: =+'[16]GHG-ER'!J29 -> 0.3817076791 | G56: 0 | H56: 0 | I56: 0 | J56: 0 | K56: 0 | L56: 0 | M56: 0 | N56: 0 | O56: 0 | P56: =+$D56*8760*$E56 -> 0 | Q56: =+$D56*8760*$E56 -> 0 | R56: 0 | S56: 0 | T56: 0 | U56: 0 | V56: 0 | W56: 0 | X56: 0 | Y56: 0 | Z56: 0 | AA56: 0
B57: CCERI4 | G57: 0 | H57: 0 | I57: 0 | J57: 0 | K57: 0 | L57: 0 | M57: 0 | N57: 0 | O57: 0 | P57: =+$D57*8760*$E57 -> 0 | Q57: 0 | R57: 0 | S57: 0 | T57: 0 | U57: 0 | V57: 0 | W57: 0 | X57: 0 | Y57: 0 | Z57: 0 | AA57: 0
B58: CCERI5 | G58: 0 | H58: 0 | I58: 0 | J58: 0 | K58: 0 | L58: 0 | M58: 0 | N58: 0 | O58: 0 | P58: =+$D58*8760*$E58 -> 0 | Q58: 0 | R58: 0 | S58: 0 | T58: 0 | U58: 0 | V58: 0 | W58: 0 | X58: 0 | Y58: 0 | Z58: 0 | AA58: 0
B59: Del Sur
B60: CCSUR1 | G60: 0 | H60: 0 | I60: 0 | J60: 0 | K60: 0 | L60: 0 | M60: 0 | N60: 0 | O60: 0 | P60: 0 | Q60: =+$D60*8760*$E60 -> 0 | R60: =+$D60*8760*$E60 -> 0 | S60: 0 | T60: 0 | U60: 0 | V60: 0 | W60: 0 | X60: 0 | Y60: 0 | Z60: 0 | AA60: 0
B61: CCSUR2 | G61: 0 | H61: 0 | I61: 0 | J61: 0 | K61: 0 | L61: 0 | M61: 0 | N61: 0 | O61: 0 | P61: 0 | Q61: =+$D61*8760*$E61 -> 0 | R61: 0 | S61: 0 | T61: 0 | U61: 0 | V61: 0 | W61: 0 | X61: 0 | Y61: 0 | Z61: 0 | AA61: 0
B62: CCSUR3 | G62: 0 | H62: 0 | I62: 0 | J62: 0 | K62: 0 | L62: 0 | M62: 0 | N62: 0 | O62: 0 | P62: =+$D62*8760*$E62 -> 0 | Q62: =+$D62*8760*$E62 -> 0 | R62: 0 | S62: 0 | T62: 0 | U62: 0 | V62: 0 | W62: 0 | X62: 0 | Y62: 0 | Z62: 0 | AA62: 0
B63: CCSUR4 | G63: 0 | H63: 0 | I63: 0 | J63: 0 | K63: 0 | L63: 0 | M63: 0 | N63: 0 | O63: 0 | P63: =+$D63*8760*$E63 -> 0 | Q63: 0 | R63: 0 | S63: 0 | T63: 0 | U63: 0 | V63: 0 | W63: 0 | X63: 0 | Y63: 0 | Z63: 0 | AA63: 0
B64: Warnes
B65: CCWAR1 | G65: 0 | H65: 0 | I65: 0 | J65: 0 | K65: 0 | L65: 0 | M65: 0 | N65: 0 | O65: 0 | P65: 0 | Q65: =+$D65*8760*$E65 -> 0 | R65: =+$D65*8760*$E65 -> 0 | S65: 0 | T65: 0 | U65: 0 | V65: 0 | W65: 0 | X65: 0 | Y65: 0 | Z65: 0 | AA65: 0
B66: CCWAR2 | G66: 0 | H66: 0 | I66: 0 | J66: 0 | K66: 0 | L66: 0 | M66: 0 | N66: 0 | O66: 0 | P66: 0 | Q66: 0 | R66: 0 | S66: 0 | T66: 0 | U66: 0 | V66: 0 | W66: 0 | X66: 0 | Y66: 0 | Z66: 0 | AA66: 0
B67: CCWAR3 | G67: 0 | H67: 0 | I67: 0 | J67: 0 | K67: 0 | L67: 0 | M67: 0 | N67: 0 | O67: 0 | P67: =+$D67*8760*$E67 -> 0 | Q67: 0 | R67: 0 | S67: 0 | T67: 0 | U67: 0 | V67: 0 | W67: 0 | X67: 0 | Y67: 0 | Z67: 0 | AA67: 0
B68: CCWAR4 | G68: 0 | H68: 0 | I68: 0 | J68: 0 | K68: 0 | L68: 0 | M68: 0 | N68: 0 | O68: 0 | P68: =+$D68*8760*$E68 -> 0 | Q68: 0 | R68: 0 | S68: 0 | T68: 0 | U68: 0 | V68: 0 | W68: 0 | X68: 0 | Y68: 0 | Z68: 0 | AA68: 0
B69: Guaracachi
B70: =+B69 -> Guaracachi | G70: 0 | H70: 0 | I70: 0 | J70: 0 | K70: 0 | L70: 0 | M70: 0 | N70: 0 | O70: 0 | P70: 0 | Q70: =+$D70*8760*$E70 -> 0 | R70: =+$D70*8760*$E70 -> 0 | S70: 0 | T70: 0 | U70: 0 | V70: 0 | W70: 0 | X70: 0 | Y70: 0 | Z70: 0 | AA70: 0
B71: Santa Cruz
B72: =+B71 -> Santa Cruz | G72: 0 | H72: 0 | I72: 0 | J72: 0 | K72: 0 | L72: 0 | M72: 0 | N72: 0 | O72: 0 | P72: =+$D72*8760*$E72 -> 0 | Q72: 0 | R72: 0 | S72: 0 | T72: 0 | U72: 0 | V72: 0 | W72: 0 | X72: 0 | Y72: 0 | Z72: 0 | AA72: 0
B73: Carrasco
B74: =+B73 -> Carrasco | G74: 0 | H74: 0 | I74: 0 | J74: 0 | K74: 0 | L74: 0 | M74: 0 | N74: 0 | O74: 0 | P74: =+$D74*8760*$E74 -> 0 | Q74: 0 | R74: 0 | S74: 0 | T74: 0 | U74: 0 | V74: 0 | W74: 0 | X74: 0 | Y74: 0 | Z74: 0 | AA74: 0
B75: Natural Gas A
B76: =+B75 -> Natural Gas A | G76: =+IF($C76<=G$52,$D76*8760*$E76,0) -> 0 | H76: 0 | I76: 0 | J76: 0 | K76: 0 | L76: 0 | M76: =+IF($C76<=M$52,$D76*8760*$E76,0) -> 0 | N76: =+IF($C76<=N$52,$D76*8760*$E76,0) -> 0 | O76: 0 | P76: =+$D76*8760*$E76 -> 0 | Q76: 0 | R76: 0 | S76: 0 | T76: 0 | U76: 0 | V76: 0 | W76: 0 | X76: 0 | Y76: 0 | Z76: 0 | AA76: 0
B77: Natural Gas B
B78: =+B77 -> Natural Gas B | G78: 0 | H78: 0 | I78: 0 | J78: 0 | K78: 0 | L78: 0 | M78: =+IF($C78<=M$52,$D78*8760*$E78,0) -> 0 | N78: 0 | O78: 0 | P78: =+$D78*8760*$E78 -> 0 | Q78: 0 | R78: 0 | S78: 0 | T78: 0 | U78: 0 | V78: 0 | W78: 0 | X78: 0 | Y78: 0 | Z78: 0 | AA78: 0
G80: 2010 | H80: 2011 | I80: 2012 | J80: 2013 | K80: 2014 | L80: 2015 | M80: 2016 | N80: 2017 | O80: 2018 | P80: 2019 | Q80: 2020 | R80: 2021 | S80: 2022 | T80: 2023 | U80: 2024 | V80: 2025 | W80: 2026 | X80: 2027 | Y80: 2028 | Z80: 2029 | AA80: 2030
B81: Plant Unit | C81: Commissioning date | D81: Capacity [MW] | E81: Capacity factor | G81: Generation [MWh] | H81: Generation [MWh] | I81: Generation [MWh] | J81: Generation [MWh] | K81: Generation [MWh] | L81: Generation [MWh] | M81: Generation [MWh] | N81: Generation [MWh] | O81: Generation [MWh] | P81: Generation [MWh] | Q81: Generation [MWh] | R81: Generation [MWh] | S81: Generation [MWh] | T81: Generation [MWh] | U81: Generation [MWh] | V81: Generation [MWh] | W81: Generation [MWh] | X81: Generation [MWh] | Y81: Generation [MWh] | Z81: Generation [MWh] | AA81: Generation [MWh]
B82: Hydropower | G82: =SUM(G84:G127) -> 0 | H82: 0 | I82: 0 | J82: 0 | K82: 0 | L82: 0 | M82: 0 | N82: 0 | O82: 240900 | P82: 543120 | Q82: 2938542 | R82: 5103138 | S82: 5103138 | T82: 5103138 | U82: 5103138 | V82: 11200098 | W82: 11200098 | X82: 11200098 | Y82: 11200098 | Z82: 33205611.6 | AA82: 40564011.6
B83: San José
B84: San Jose I | C84: 2018 | D84: 55 | E84: 0.5 | G84: =+IF($C84<=G$52,$D84*8760*$E84,0) -> 0 | H84: 0 | I84: 0 | J84: 0 | K84: 0 | L84: 0 | M84: 0 | N84: 0 | O84: 240900 | P84: 240900 | Q84: 240900 | R84: 240900 | S84: 240900 | T84: 240900 | U84: 240900 | V84: 240900 | W84: =+IF($C84<=W$52,$D84*8760*$E84,0) -> 240900 | X84: 240900 | Y84: 240900 | Z84: 240900 | AA84: 240900
B85: San José II | C85: 2019 | D85: 69 | E85: 0.5 | G85: 0 | H85: 0 | I85: 0 | J85: 0 | K85: 0 | L85: 0 | M85: 0 | N85: 0 | O85: 0 | P85: 302220 | Q85: 302220 | R85: 302220 | S85: 302220 | T85: 302220 | U85: 302220 | V85: 302220 | W85: 302220 | X85: 302220 | Y85: 302220 | Z85: 302220 | AA85: 302220
B86: Sehuencas
B87: Sehuencas | C87: 2021 | D87: 198.6 | E87: 0.5 | G87: 0 | H87: 0 | I87: 0 | J87: 0 | K87: 0 | L87: 0 | M87: 0 | N87: 0 | O87: 0 | P87: 0 | Q87: 0 | R87: 869868 | S87: 869868 | T87: 869868 | U87: 869868 | V87: 869868 | W87: 869868 | X87: 869868 | Y87: 869868 | Z87: 869868 | AA87: 869868
B88: Juntas
B89: Juntas | C89: 2021 | D89: 91.6 | E89: 0.5 | G89: 0 | H89: 0 | I89: 0 | J89: 0 | K89: 0 | L89: 0 | M89: 0 | N89: 0 | O89: 0 | P89: 0 | Q89: 0 | R89: 401208 | S89: 401208 | T89: 401208 | U89: 401208 | V89: 401208 | W89: 401208 | X89: 401208 | Y89: 401208 | Z89: 401208 | AA89: 401208
B90: Umapalca
B91: Umapalca | C91: 2021 | D91: 85.8 | E91: 0.5 | G91: 0 | H91: 0 | I91: 0 | J91: 0 | K91: 0 | L91: 0 | M91: 0 | N91: 0 | O91: 0 | P91: 0 | Q91: 0 | R91: 375804 | S91: 375804 | T91: 375804 | U91: 375804 | V91: 375804 | W91: 375804 | X91: 375804 | Y91: 375804 | Z91: 375804 | AA91: 375804
B92: Palillada
B93: Palillada | C93: 2021 | D93: 118.2 | E93: 0.5 | G93: 0 | H93: 0 | I93: 0 | J93: 0 | K93: 0 | L93: 0 | M93: 0 | N93: 0 | O93: 0 | P93: 0 | Q93: 0 | R93: 517716 | S93: 517716 | T93: 517716 | U93: 517716 | V93: 517716 | W93: 517716 | X93: 517716 | Y93: 517716 | Z93: 517716 | AA93: 517716
B94: Ivirizu
B95: =+B94 -> Ivirizu | C95: 2020 | D95: 253.9 | E95: 0.5 | G95: 0 | H95: 0 | I95: 0 | J95: 0 | K95: 0 | L95: 0 | M95: 0 | N95: 0 | O95: 0 | P95: 0 | Q95: 1112082 | R95: 1112082 | S95: 1112082 | T95: 1112082 | U95: 1112082 | V95: 1112082 | W95: 1112082 | X95: 1112082 | Y95: 1112082 | Z95: 1112082 | AA95: 1112082
B96: Banda Azul
B97: =+B96 -> Banda Azul | C97: 2020 | D97: 93 | E97: 0.5 | G97: 0 | H97: 0 | I97: 0 | J97: 0 | K97: 0 | L97: 0 | M97: 0 | N97: 0 | O97: 0 | P97: 0 | Q97: 407340 | R97: 407340 | S97: 407340 | T97: 407340 | U97: 407340 | V97: 407340 | W97: 407340 | X97: 407340 | Y97: 407340 | Z97: 407340 | AA97: 407340
B98: Pequenas centrales
B99: =+B98 -> Pequenas centrales | C99: 2020 | D99: 200 | E99: 0.5 | G99: 0 | H99: 0 | I99: 0 | J99: 0 | K99: 0 | L99: 0 | M99: 0 | N99: 0 | O99: 0 | P99: 0 | Q99: 876000 | R99: 876000 | S99: 876000 | T99: 876000 | U99: 876000 | V99: 876000 | W99: 876000 | X99: 876000 | Y99: 876000 | Z99: 876000 | AA99: 876000
B100: Carrizal
B101: =+B100 -> Carrizal | C101: 2025 | D101: 347 | E101: 0.5 | G101: 0 | H101: 0 | I101: 0 | J101: 0 | K101: 0 | L101: 0 | M101: 0 | N101: 0 | O101: 0 | P101: 0 | Q101: 0 | R101: 0 | S101: 0 | T101: 0 | U101: 0 | V101: 1519860 | W101: 1519860 | X101: 1519860 | Y101: 1519860 | Z101: 1519860 | AA101: 1519860
B102: Cambari
B103: =+B102 -> Cambari | C103: 2025 | D103: 93 | E103: 0.5 | G103: 0 | H103: 0 | I103: 0 | J103: 0 | K103: 0 | L103: 0 | M103: 0 | N103: 0 | O103: 0 | P103: 0 | Q103: 0 | R103: 0 | S103: 0 | T103: 0 | U103: 0 | V103: 407340 | W103: 407340 | X103: 407340 | Y103: 407340 | Z103: 407340 | AA103: 407340
B104: Cuenca Corani
B105: =+B104 -> Cuenca Corani | C105: 2025 | D105: 220 | E105: 0.5 | G105: 0 | H105: 0 | I105: 0 | J105: 0 | K105: 0 | L105: 0 | M105: 0 | N105: 0 | O105: 0 | P105: 0 | Q105: 0 | R105: 0 | S105: 0 | T105: 0 | U105: 0 | V105: 963600 | W105: 963600 | X105: 963600 | Y105: 963600 | Z105: 963600 | AA105: 963600
B106: Moliineros
B107: =+B106 -> Moliineros | C107: 2025 | D107: 132 | E107: 0.5 | G107: 0 | H107: 0 | I107: 0 | J107: 0 | K107: 0 | L107: 0 | M107: 0 | N107: 0 | O107: 0 | P107: 0 | Q107: 0 | R107: 0 | S107: 0 | T107: 0 | U107: 0 | V107: 578160 | W107: 578160 | X107: 578160 | Y107: 578160 | Z107: 578160 | AA107: 578160
B108: Rositas
B109: =+B108 -> Rositas | C109: 2025 | D109: 600 | E109: 0.5 | G109: 0 | H109: 0 | I109: 0 | J109: 0 | K109: 0 | L109: 0 | M109: 0 | N109: 0 | O109: 0 | P109: 0 | Q109: 0 | R109: 0 | S109: 0 | T109: 0 | U109: 0 | V109: 2628000 | W109: 2628000 | X109: 2628000 | Y109: 2628000 | Z109: 2628000 | AA109: 2628000
B110: Icla
B111: =+B110 -> Icla | C111: 2029 | D111: 102 | E111: 0.53 | G111: =+IF($C111<=G$52,$D111*8760*$E111,0) -> 0 | H111: 0 | I111: 0 | J111: 0 | K111: 0 | L111: 0 | M111: 0 | N111: 0 | O111: 0 | P111: 0 | Q111: 0 | R111: 0 | S111: 0 | T111: 0 | U111: 0 | V111: 0 | W111: 0 | X111: 0 | Y111: 0 | Z111: 473565.6 | AA111: 473565.6
B112: Margarita
B113: =+B112 -> Margarita | C113: 2029 | D113: 150 | E113: 0.53 | G113: =+IF($C113<=G$52,$D113*8760*$E113,0) -> 0 | H113: 0 | I113: 0 | J113: 0 | K113: 0 | L113: 0 | M113: 0 | N113: 0 | O113: 0 | P113: 0 | Q113: 0 | R113: 0 | S113: 0 | T113: 0 | U113: 0 | V113: 0 | W113: 0 | X113: 0 | Y113: 0 | Z113: 696420 | AA113: 696420
B114: Río Grande (excl. Juntas)
B115: =+B114 -> Río Grande (excl. Juntas) | C115: 2029 | D115: =3072-172 -> 2900 | E115: 0.53 | G115: =+IF($C115<=G$52,$D115*8760*$E115,0) -> 0 | H115: 0 | I115: 0 | J115: 0 | K115: 0 | L115: 0 | M115: 0 | N115: 0 | O115: 0 | P115: 0 | Q115: 0 | R115: 0 | S115: 0 | T115: 0 | U115: 0 | V115: 0 | W115: 0 | X115: 0 | Y115: 0 | Z115: 13464120 | AA115: 13464120
B116: Otras nuevas plantas
B117: =+B116 -> Otras nuevas plantas | C117: 2029 | D117: 360 | E117: 0.53 | G117: =+IF($C117<=G$52,$D117*8760*$E117,0) -> 0 | H117: 0 | I117: 0 | J117: 0 | K117: 0 | L117: 0 | M117: 0 | N117: 0 | O117: 0 | P117: 0 | Q117: 0 | R117: 0 | S117: 0 | T117: 0 | U117: 0 | V117: 0 | W117: 0 | X117: 0 | Y117: 0 | Z117: 1671408 | AA117: 1671408
B118: Cachuela Esperanza
B119: =+B118 -> Cachuela Esperanza | C119: 2029 | D119: 990 | E119: 0.6572575066 | G119: =+IF($C119<=G$52,$D119*8760*$E119,0) -> 0 | H119: 0 | I119: 0 | J119: 0 | K119: 0 | L119: 0 | M119: 0 | N119: 0 | O119: 0 | P119: 0 | Q119: 0 | R119: 0 | S119: 0 | T119: 0 | U119: 0 | V119: 0 | W119: 0 | X119: 0 | Y119: 0 | Z119: 5700000 | AA119: 5700000
B120: El Bala
B121: =B120 -> El Bala | C121: 2030 | D121: 1680 | E121: 0.5 | G121: =+IF($C121<=G$52,$D121*8760*$E121,0) -> 0 | H121: 0 | I121: 0 | J121: 0 | K121: 0 | L121: 0 | M121: 0 | N121: 0 | O121: 0 | P121: 0 | Q121: 0 | R121: 0 | S121: 0 | T121: 0 | U121: 0 | V121: 0 | W121: 0 | X121: 0 | Y121: 0 | Z121: 0 | AA121: 7358400
B122: Hydro A
B123: =B122 -> Hydro A | G123: =+IF($C123<=G$52,$D123*8760*$E123,0) -> 0 | H123: 0 | I123: 0 | J123: 0 | K123: 0 | L123: 0 | M123: 0 | N123: 0 | O123: 0 | P123: 0 | Q123: 0 | R123: 0 | S123: 0 | T123: 0 | U123: 0 | V123: 0 | W123: 0 | X123: 0 | Y123: 0 | Z123: 0 | AA123: 0
B124: Hydro B
B125: =B124 -> Hydro B | G125: =+IF($C125<=G$52,$D125*8760*$E125,0) -> 0 | H125: 0 | I125: 0 | J125: 0 | K125: 0 | L125: 0 | M125: 0 | N125: 0 | O125: 0 | P125: 0 | Q125: 0 | R125: 0 | S125: 0 | T125: 0 | U125: 0 | V125: 0 | W125: 0 | X125: 0 | Y125: 0 | Z125: 0 | AA125: 0
B126: Hydro C
B127: =B126 -> Hydro C | G127: 0 | H127: 0 | I127: 0 | J127: 0 | K127: 0 | L127: 0 | M127: 0 | N127: 0 | O127: 0 | P127: 0 | Q127: 0 | R127: 0 | S127: 0 | T127: 0 | U127: 0 | V127: 0 | W127: 0 | X127: 0 | Y127: 0 | Z127: 0 | AA127: 0
G130: 2010 | H130: 2011 | I130: 2012 | J130: 2013 | K130: 2014 | L130: 2015 | M130: 2016 | N130: 2017 | O130: 2018 | P130: 2019 | Q130: 2020 | R130: 2021 | S130: 2022 | T130: 2023 | U130: 2024 | V130: 2025 | W130: 2026 | X130: 2027 | Y130: 2028 | Z130: 2029 | AA130: 2030
B131: Plant Unit | C131: Commissioning date | D131: Capacity [MW] | E131: Capacity factor | G131: Generation [MWh] | H131: Generation [MWh] | I131: Generation [MWh] | J131: Generation [MWh] | K131: Generation [MWh] | L131: Generation [MWh] | M131: Generation [MWh] | N131: Generation [MWh] | O131: Generation [MWh] | P131: Generation [MWh] | Q131: Generation [MWh] | R131: Generation [MWh] | S131: Generation [MWh] | T131: Generation [MWh] | U131: Generation [MWh] | V131: Generation [MWh] | W131: Generation [MWh] | X131: Generation [MWh] | Y131: Generation [MWh] | Z131: Generation [MWh] | AA131: Generation [MWh]
B132: Wind | G132: =+SUM(G133:G147) -> 0 | H132: =+SUM(H133:H147) -> 0 | I132: 0 | J132: 0 | K132: 0 | L132: 0 | M132: 0 | N132: 0 | O132: 0 | P132: 0 | Q132: =+SUM(Q133:Q147) -> 331128 | R132: =+SUM(R133:R147) -> 469098 | S132: =+SUM(S133:S147) -> 469098 | T132: 469098 | U132: 469098 | V132: 469098 | W132: 469098 | X132: 469098 | Y132: 469098 | Z132: 469098 | AA132: =+SUM(AA133:AA147) -> 1315314
B133: El Dorado
B134: El Dorado | C134: 2020 | D134: 54 | E134: 0.35 | G134: =+IF($C134<=G$52,$D134*8760*$E134,0) -> 0 | H134: =+IF($C134<=H$52,$D134*8760*$E134,0) -> 0 | I134: 0 | J134: 0 | K134: 0 | L134: 0 | M134: 0 | N134: 0 | O134: 0 | P134: 0 | Q134: 165564 | R134: 165564 | S134: 165564 | T134: 165564 | U134: 165564 | V134: 165564 | W134: 165564 | X134: 165564 | Y134: 165564 | Z134: 165564 | AA134: 165564
B135: La Ventolera
B136: La Ventolera | C136: 2021 | D136: 24 | E136: 0.35 | G136: =+IF($C136<=G$52,$D136*8760*$E136,0) -> 0 | H136: 0 | I136: 0 | J136: 0 | K136: 0 | L136: 0 | M136: 0 | N136: 0 | O136: 0 | P136: 0 | Q136: 0 | R136: 73584 | S136: 73584 | T136: 73584 | U136: 73584 | V136: 73584 | W136: 73584 | X136: 73584 | Y136: 73584 | Z136: 73584 | AA136: 73584
B137: San Julián
B138: San Julián | C138: 2020 | D138: 39.6 | E138: 0.35 | G138: =+IF($C138<=G$52,$D138*8760*$E138,0) -> 0 | H138: 0 | I138: 0 | J138: 0 | K138: 0 | L138: 0 | M138: 0 | N138: 0 | O138: 0 | P138: 0 | Q138: 121413.6 | R138: 121413.6 | S138: 121413.6 | T138: 121413.6 | U138: 121413.6 | V138: 121413.6 | W138: 121413.6 | X138: 121413.6 | Y138: 121413.6 | Z138: 121413.6 | AA138: 121413.6
B139: Warnes
B140: Warnes I | C140: 2020 | D140: 14.4 | E140: 0.35 | G140: =+IF($C140<=G$52,$D140*8760*$E140,0) -> 0 | H140: 0 | I140: 0 | J140: 0 | K140: 0 | L140: 0 | M140: 0 | N140: 0 | O140: 0 | P140: 0 | Q140: 44150.4 | R140: 44150.4 | S140: 44150.4 | T140: 44150.4 | U140: 44150.4 | V140: 44150.4 | W140: 44150.4 | X140: 44150.4 | Y140: 44150.4 | Z140: 44150.4 | AA140: 44150.4
B141: Warnes II | C141: 2021 | D141: 21 | E141: 0.35 | G141: =+IF($C141<=G$52,$D141*8760*$E141,0) -> 0 | H141: 0 | I141: 0 | J141: 0 | K141: 0 | L141: 0 | M141: 0 | N141: 0 | O141: 0 | P141: 0 | Q141: 0 | R141: 64386 | S141: 64386 | T141: 64386 | U141: 64386 | V141: 64386 | W141: 64386 | X141: 64386 | Y141: 64386 | Z141: 64386 | AA141: 64386
B142: Wind A
B143: Wind A | C143: 2030 | D143: 276 | E143: 0.35 | G143: =+IF($C143<=G$52,$D143*8760*$E143,0) -> 0 | H143: 0 | I143: 0 | J143: 0 | K143: 0 | L143: 0 | M143: 0 | N143: 0 | O143: 0 | P143: 0 | Q143: 0 | R143: 0 | S143: 0 | T143: 0 | U143: 0 | V143: 0 | W143: 0 | X143: 0 | Y143: 0 | Z143: 0 | AA143: 846216
B144: Wind B
B145: Wind B | G145: =+IF($C145<=G$52,$D145*8760*$E145,0) -> 0 | H145: 0 | I145: 0 | J145: 0 | K145: 0 | L145: 0 | M145: 0 | N145: 0 | O145: 0 | P145: 0 | Q145: 0 | R145: 0 | S145: 0 | T145: 0 | U145: 0 | V145: 0 | W145: 0 | X145: 0 | Y145: 0 | Z145: 0 | AA145: 0
B146: Wind C
B147: Wind C | G147: =+IF($C147<=G$52,$D147*8760*$E147,0) -> 0 | H147: 0 | I147: 0 | J147: 0 | K147: 0 | L147: 0 | M147: 0 | N147: 0 | O147: 0 | P147: 0 | Q147: 0 | R147: 0 | S147: 0 | T147: 0 | U147: 0 | V147: 0 | W147: 0 | X147: 0 | Y147: 0 | Z147: 0 | AA147: 0
G149: 2010 | H149: 2011 | I149: 2012 | J149: 2013 | K149: 2014 | L149: 2015 | M149: 2016 | N149: 2017 | O149: 2018 | P149: 2019 | Q149: 2020 | R149: 2021 | S149: 2022 | T149: 2023 | U149: 2024 | V149: 2025 | W149: 2026 | X149: 2027 | Y149: 2028 | Z149: 2029 | AA149: 2030
B150: Plant Unit | C150: Commissioning date | D150: Capacity [MW] | E150: Capacity factor | G150: Generation [MWh] | H150: Generation [MWh] | I150: Generation [MWh] | J150: Generation [MWh] | K150: Generation [MWh] | L150: Generation [MWh] | M150: Generation [MWh] | N150: Generation [MWh] | O150: Generation [MWh] | P150: Generation [MWh] | Q150: Generation [MWh] | R150: Generation [MWh] | S150: Generation [MWh] | T150: Generation [MWh] | U150: Generation [MWh] | V150: Generation [MWh] | W150: Generation [MWh] | X150: Generation [MWh] | Y150: Generation [MWh] | Z150: Generation [MWh] | AA150: Generation [MWh]
B151: Solar PV | G151: =+SUM(G152:G165) -> 0 | H151: =+SUM(H152:H156) -> 0 | I151: 0 | J151: 0 | K151: 0 | L151: 0 | M151: 0 | N151: 0 | O151: =+SUM(O152:O165) -> 136656 | P151: =+SUM(P152:P165) -> 346896 | Q151: 357408 | R151: 357408 | S151: 357408 | T151: 357408 | U151: 357408 | V151: 357408 | W151: =+SUM(W152:W165) -> 357408 | X151: 357408 | Y151: 357408 | Z151: 357408 | AA151: =+SUM(AA152:AA165) -> 777888
B152: Oruro
B153: Oruro I | C153: 2019 | D153: 50 | E153: 0.24 | G153: =+IF($C153<=G$52,$D153*8760*$E153,0) -> 0 | H153: =+IF($C153<=H$52,$D153*8760*$E153,0) -> 0 | I153: 0 | J153: 0 | K153: 0 | L153: 0 | M153: 0 | N153: 0 | O153: 0 | P153: 105120 | Q153: 105120 | R153: 105120 | S153: 105120 | T153: 105120 | U153: 105120 | V153: 105120 | W153: 105120 | X153: 105120 | Y153: 105120 | Z153: 105120 | AA153: =+IF($C153<=AA$52,$D153*8760*$E153,0) -> 105120
B154: Oruro
B155: Oruro I | C155: 2019 | D155: 50 | E155: 0.24 | G155: =+IF($C155<=G$52,$D155*8760*$E155,0) -> 0 | H155: =+IF($C155<=H$52,$D155*8760*$E155,0) -> 0 | I155: 0 | J155: 0 | K155: 0 | L155: 0 | M155: 0 | N155: 0 | O155: 0 | P155: 105120 | Q155: 105120 | R155: 105120 | S155: 105120 | T155: 105120 | U155: 105120 | V155: 105120 | W155: 105120 | X155: 105120 | Y155: 105120 | Z155: 105120 | AA155: =+IF($C155<=AA$52,$D155*8760*$E155,0) -> 105120
B156: Uyuni
B157: Uyuni | C157: 2018 | D157: 60 | E157: 0.24 | G157: =+IF($C157<=G$52,$D157*8760*$E157,0) -> 0 | H157: =+IF($C157<=H$52,$D157*8760*$E157,0) -> 0 | I157: 0 | J157: 0 | K157: 0 | L157: 0 | M157: 0 | N157: 0 | O157: 126144 | P157: 126144 | Q157: 126144 | R157: 126144 | S157: 126144 | T157: 126144 | U157: 126144 | V157: 126144 | W157: 126144 | X157: 126144 | Y157: 126144 | Z157: 126144 | AA157: =+IF($C157<=AA$52,$D157*8760*$E157,0) -> 126144
B158: Yunchará
B159: Yunchará | C159: 2018 | D159: 5 | E159: 0.24 | G159: =+IF($C159<=G$52,$D159*8760*$E159,0) -> 0 | H159: =+IF($C159<=H$52,$D159*8760*$E159,0) -> 0 | I159: 0 | J159: 0 | K159: 0 | L159: 0 | M159: 0 | N159: 0 | O159: 10512 | P159: 10512 | Q159: 10512 | R159: 10512 | S159: 10512 | T159: 10512 | U159: 10512 | V159: 10512 | W159: 10512 | X159: 10512 | Y159: 10512 | Z159: 10512 | AA159: =+IF($C159<=AA$52,$D159*8760*$E159,0) -> 10512
B160: Riberalta - Guayamerin
B161: =B160 -> Riberalta - Guayamerin | C161: 2020 | D161: 5 | E161: 0.24 | G161: =+IF($C161<=G$52,$D161*8760*$E161,0) -> 0 | H161: =+IF($C161<=H$52,$D161*8760*$E161,0) -> 0 | I161: 0 | J161: 0 | K161: 0 | L161: 0 | M161: 0 | N161: 0 | O161: 0 | P161: 0 | Q161: 10512 | R161: 10512 | S161: 10512 | T161: 10512 | U161: 10512 | V161: 10512 | W161: 10512 | X161: 10512 | Y161: 10512 | Z161: 10512 | AA161: =+IF($C161<=AA$52,$D161*8760*$E161,0) -> 10512
B162: Solar A
B163: =+B162 -> Solar A | C163: 2030 | D163: 200 | E163: 0.24 | G163: =+IF($C163<=G$52,$D163*8760*$E163,0) -> 0 | H163: =+IF($C163<=H$52,$D163*8760*$E163,0) -> 0 | I163: 0 | J163: 0 | K163: 0 | L163: 0 | M163: 0 | N163: 0 | O163: 0 | P163: 0 | Q163: 0 | R163: 0 | S163: 0 | T163: 0 | U163: 0 | V163: 0 | W163: 0 | X163: 0 | Y163: 0 | Z163: 0 | AA163: =+IF($C163<=AA$52,$D163*8760*$E163,0) -> 420480
B164: Solar B
B165: =B164 -> Solar B | G165: =+IF($C165<=G$52,$D165*8760*$E165,0) -> 0 | H165: 0 | I165: 0 | J165: 0 | K165: 0 | L165: 0 | M165: 0 | N165: 0 | O165: 0 | P165: 0 | Q165: 0 | R165: 0 | S165: 0 | T165: 0 | U165: 0 | V165: 0 | W165: 0 | X165: 0 | Y165: 0 | Z165: 0 | AA165: =+IF($C165<=AA$52,$D165*8760*$E165,0) -> 0
G167: 2010 | H167: 2011 | I167: 2012 | J167: 2013 | K167: 2014 | L167: 2015 | M167: 2016 | N167: 2017 | O167: 2018 | P167: 2019 | Q167: 2020 | R167: 2021 | S167: 2022 | T167: 2023 | U167: 2024 | V167: 2025 | W167: 2026 | X167: 2027 | Y167: 2028 | Z167: 2029 | AA167: 2030
B168: Plant Unit | C168: Commissioning date | D168: Capacity [MW] | E168: Capacity factor | G168: Generation [MWh] | H168: Generation [MWh] | I168: Generation [MWh] | J168: Generation [MWh] | K168: Generation [MWh] | L168: Generation [MWh] | M168: Generation [MWh] | N168: Generation [MWh] | O168: Generation [MWh] | P168: Generation [MWh] | Q168: Generation [MWh] | R168: Generation [MWh] | S168: Generation [MWh] | T168: Generation [MWh] | U168: Generation [MWh] | V168: Generation [MWh] | W168: Generation [MWh] | X168: Generation [MWh] | Y168: Generation [MWh] | Z168: Generation [MWh] | AA168: Generation [MWh]
B169: Geothermal | G169: =+SUM(G170:G173) -> 0 | H169: =+SUM(H170:H173) -> 0 | I169: 0 | J169: 0 | K169: 0 | L169: 0 | M169: 0 | N169: 0 | O169: 0 | P169: 0 | Q169: 37230 | R169: 37230 | S169: 37230 | T169: 781830 | U169: 781830 | V169: 781830 | W169: 781830 | X169: 781830 | Y169: 781830 | Z169: 781830 | AA169: 781830
B170: Laguna Colorada
B171: Laguna Colorada | C171: 2020 | D171: 5 | E171: 0.85 | G171: =+IF($C171<=G$52,$D171*8760*$E171,0) -> 0 | H171: =+IF($C171<=H$52,$D171*8760*$E171,0) -> 0 | I171: 0 | J171: 0 | K171: 0 | L171: 0 | M171: 0 | N171: 0 | O171: 0 | P171: 0 | Q171: 37230 | R171: 37230 | S171: 37230 | T171: 37230 | U171: 37230 | V171: 37230 | W171: 37230 | X171: 37230 | Y171: 37230 | Z171: 37230 | AA171: 37230
B172: Laguna Colorada
B173: =+B172 -> Laguna Colorada | C173: 2023 | D173: 100 | E173: 0.85 | G173: =+IF($C173<=G$52,$D173*8760*$E173,0) -> 0 | H173: 0 | I173: 0 | J173: 0 | K173: 0 | L173: 0 | M173: 0 | N173: 0 | O173: 0 | P173: 0 | Q173: 0 | R173: 0 | S173: 0 | T173: 744600 | U173: 744600 | V173: 744600 | W173: 744600 | X173: 744600 | Y173: 744600 | Z173: 744600 | AA173: 744600
G175: 2010 | H175: 2011 | I175: 2012 | J175: 2013 | K175: 2014 | L175: 2015 | M175: 2016 | N175: 2017 | O175: 2018 | P175: 2019 | Q175: 2020 | R175: 2021 | S175: 2022 | T175: 2023 | U175: 2024 | V175: 2025 | W175: 2026 | X175: 2027 | Y175: 2028 | Z175: 2029 | AA175: 2030
B176: Plant Unit | C176: Commissioning date | D176: Capacity [MW] | E176: Capacity factor | G176: Generation [MWh] | H176: Generation [MWh] | I176: Generation [MWh] | J176: Generation [MWh] | K176: Generation [MWh] | L176: Generation [MWh] | M176: Generation [MWh] | N176: Generation [MWh] | O176: Generation [MWh] | P176: Generation [MWh] | Q176: Generation [MWh] | R176: Generation [MWh] | S176: Generation [MWh] | T176: Generation [MWh] | U176: Generation [MWh] | V176: Generation [MWh] | W176: Generation [MWh] | X176: Generation [MWh] | Y176: Generation [MWh] | Z176: Generation [MWh] | AA176: Generation [MWh]
B177: Biomass | G177: =+SUM(G178:G183) -> 0 | H177: =+SUM(H178:H183) -> 0 | I177: 0 | J177: 0 | K177: 0 | L177: 0 | M177: 0 | N177: 0 | O177: 0 | P177: 0 | Q177: =+SUM(Q178:Q183) -> 372300 | R177: 372300 | S177: 372300 | T177: 372300 | U177: 372300 | V177: 372300 | W177: 372300 | X177: 372300 | Y177: 372300 | Z177: 372300 | AA177: 372300
B178: San Buenaventura
B179: =+B178 -> San Buenaventura | C179: 2020 | D179: 10 | E179: 0.85 | G179: =+IF($C179<=G$52,$D179*8760*$E179,0) -> 0 | H179: =+IF($C179<=H$52,$D179*8760*$E179,0) -> 0 | I179: 0 | J179: 0 | K179: 0 | L179: 0 | M179: 0 | N179: 0 | O179: 0 | P179: 0 | Q179: 74460 | R179: 74460 | S179: 74460 | T179: 74460 | U179: 74460 | V179: 74460 | W179: 74460 | X179: 74460 | Y179: 74460 | Z179: 74460 | AA179: 74460
B180: Cobija
B181: =+B180 -> Cobija | C181: 2020 | D181: 20 | E181: 0.85 | G181: =+IF($C181<=G$52,$D181*8760*$E181,0) -> 0 | H181: 0 | I181: 0 | J181: 0 | K181: 0 | L181: 0 | M181: 0 | N181: 0 | O181: 0 | P181: 0 | Q181: 148920 | R181: 148920 | S181: 148920 | T181: 148920 | U181: 148920 | V181: 148920 | W181: 148920 | X181: 148920 | Y181: 148920 | Z181: 148920 | AA181: 148920
B182: Riberalta
B183: =+B182 -> Riberalta | C183: 2020 | D183: 20 | E183: 0.85 | G183: =+IF($C183<=G$52,$D183*8760*$E183,0) -> 0 | H183: 0 | I183: 0 | J183: 0 | K183: 0 | L183: 0 | M183: 0 | N183: 0 | O183: 0 | P183: 0 | Q183: 148920 | R183: 148920 | S183: 148920 | T183: 148920 | U183: 148920 | V183: 148920 | W183: 148920 | X183: 148920 | Y183: 148920 | Z183: 148920 | AA183: 148920
B186: Existing plants
G188: 2010 | H188: 2011 | I188: 2012 | J188: 2013 | K188: 2014 | L188: 2015 | M188: 2016 | N188: 2017 | O188: 2018 | P188: 2019 | Q188: 2020 | R188: 2021 | S188: 2022 | T188: 2023 | U188: 2024 | V188: 2025 | W188: 2026 | X188: 2027 | Y188: 2028 | Z188: 2029 | AA188: 2030
B189: Plant Unit | C189: Commissioning date | D189: Capacity [MW] | E189: Capacity factor | F189: Emission factor (2017) [tCO2/MWh] | G189: Generation [MWh] | H189: Generation [MWh] | I189: Generation [MWh] | J189: Generation [MWh] | K189: Generation [MWh] | L189: Generation [MWh] | M189: Generation [MWh] | N189: Generation [MWh] | O189: Generation [MWh] | P189: Generation [MWh] | Q189: Generation [MWh] | R189: Generation [MWh] | S189: Generation [MWh] | T189: Generation [MWh] | U189: Generation [MWh] | V189: Generation [MWh] | W189: Generation [MWh] | X189: Generation [MWh] | Y189: Generation [MWh] | Z189: Generation [MWh] | AA189: Generation [MWh]
B190: Natural gas | G190: =SUM(G191:G258) -> 3875855.715 | H190: =SUM(H191:H258) -> 4204795.55 | I190: 4475347.261 | J190: 4692441.889 | K190: 5426028.464 | L190: 5718182.038 | M190: 6857813.304 | N190: =SUM(N191:N258) -> 6556082.49 | O190: =SUM(O191:O258) -> 6373210.998 | P190: =SUM(P191:P258) -> 6538663.197 | Q190: 5665884.799 | R190: 5616449.888 | S190: =SUM(S191:S258) -> 5648877.554 | T190: =SUM(T191:T258) -> 5636963.709 | U190: 5634097.05 | V190: 3245992.032 | W190: 3243025.993 | X190: 3243042.557 | Y190: 3244020.194 | Z190: 0 | AA190: =SUM(AA191:AA258) -> 0
B191: El Alto
B192: ALT1 | C192: 2012 | D192: 17.5 | F192: =+[16]OM_EF_2017!G24 -> 0.5643047003 | G192: 0 | H192: 0 | I192: 57810.7089 | J192: 107684.098 | K192: 108265.7625 | L192: 62901.0717 | M192: 100635.927 | N192: 49236.5229 | O192: =+AVERAGE($L$192:$N$192) -> 70924.5072 | P192: =+AVERAGE($L$192:$N$192) -> 70924.5072 | Q192: 70924.5072 | R192: 70924.5072 | S192: 70924.5072 | T192: 70924.5072 | U192: 70924.5072 | V192: 70924.5072 | W192: 70924.5072 | X192: 70924.5072 | Y192: 70924.5072
B193: ALT2 | C193: 2013 | D193: 32.4 | F193: =+[16]OM_EF_2017!G25 -> 0.4944620795 | G193: 0 | H193: 0 | I193: 0 | J193: 103575.9891 | K193: 74350.10655 | L193: 230006.7025 | M193: 213864.514 | N193: 148687.6958 | O193: =+AVERAGE($L$193:$N$193) -> 197519.6374 | P193: =+AVERAGE($L$193:$N$193) -> 197519.6374 | Q193: 197519.6374 | R193: 197519.6374 | S193: 197519.6374 | T193: 197519.6374 | U193: 197519.6374 | V193: 197519.6374 | W193: 197519.6374 | X193: 197519.6374 | Y193: 197519.6374
B194: Aranjuez
B195: ARJ1 | C195: 1974 | D195: 3 | F195: =+[16]OM_EF_2017!G27 -> 0.6037835376 | G195: 0 | H195: 1295.25873 | I195: 6370.205515 | J195: 1574.993684 | K195: 5457.598282 | L195: 903.1293569 | M195: 2065.398746 | N195: 511.0025 | O195: =+AVERAGE($L$195:$N$195) -> 1159.843534 | P195: 1159.843534
B196: ARJ2 | C196: 1974 | D196: 3 | F196: =+[16]OM_EF_2017!G28 -> 0.6037835376 | G196: 7078.176123 | H196: 6630.80579 | I196: 0 | J196: 0 | K196: 1826.328269 | L196: 911.2479539 | M196: 2494.435346 | N196: 148.1945 | O196: =+AVERAGE($L$196:$N$196) -> 1184.625933 | P196: 1184.625933
B197: ARJ3 | C197: 1974 | D197: 3 | F197: =+[16]OM_EF_2017!G29 -> 0.6037835376 | G197: 6933.803202 | H197: 3921.550401 | I197: 7512.44944 | J197: 1769.8755 | K197: 5453.138 | L197: 742.6815 | M197: 3046.812 | N197: 740.5125 | O197: =+AVERAGE($L$197:$N$197) -> 1510.002 | P197: 1510.002
B198: ARJ5 | C198: 1970 | G198: 0 | H198: 0 | I198: 0 | J198: 0 | K198: 0 | L198: 0 | M198: 0 | N198: 0 | O198: =+AVERAGE(L198:N198) -> 0 | P198: =+O198 -> 0 | Q198: 0 | R198: 0 | S198: 0 | T198: 0 | U198: 0 | V198: 0 | W198: 0 | X198: 0 | Y198: 0 | Z198: 0 | AA198: 0
B199: ARJ6 | C199: 1971 | G199: 2.1599455 | H199: 0 | I199: 0 | J199: 0 | K199: 0 | L199: 0 | M199: 0 | N199: 0 | O199: 0 | P199: 0 | Q199: 0 | R199: 0 | S199: 0 | T199: 0 | U199: 0 | V199: 0 | W199: 0 | X199: 0 | Y199: 0 | Z199: 0 | AA199: 0
B200: ARJ8 | C200: 1994 | D200: 18 | F200: =+[16]OM_EF_2017!G30 -> 0.6804920431 | G200: 128803.56 | H200: 132236.64 | I200: 116890.92 | J200: 106260.78 | K200: 105427.86 | L200: 83446.76 | M200: 101154.24 | N200: 139685.16 | O200: =+AVERAGE($L$200:$N$200) -> 108095.3867 | P200: =+AVERAGE($L$200:$N$200) -> 108095.3867
B201: ARJ9 | C201: 2007 | D201: 2 | F201: =+[16]OM_EF_2017!G31 -> 0.535657388 | G201: 8515.644332 | H201: 9389.035841 | I201: 1184.838632 | J201: 338.88614 | K201: 10782.3011 | L201: 8423.39897 | M201: 10825.28304 | N201: 697.12325 | O201: =+AVERAGE($L$201:$N$201) -> 6648.601753 | P201: =+AVERAGE($L$201:$N$201) -> 6648.601753 | Q201: 6648.601753 | R201: 6648.601753 | S201: 6648.601753 | T201: 6648.601753 | U201: 6648.601753
B202: ARJ10 | C202: 2007 | D202: 2 | F202: =+[16]OM_EF_2017!G32 -> 0.535657388 | G202: 5375.3301 | H202: 6762.75858 | I202: 8797.995819 | J202: 4904.84453 | K202: 2009.37959 | L202: 0 | M202: 0 | N202: 0 | O202: 0 | P202: =+O202 -> 0 | Q202: 0 | R202: 0 | S202: 0 | T202: 0 | U202: 0
B203: ARJ11 | C203: 2007 | D203: 2 | F203: =+[16]OM_EF_2017!G33 -> 0.535657388 | G203: 5023.210781 | H203: 0 | I203: 8208.257779 | J203: 9655.36312 | K203: 5505.76371 | L203: 4874.09304 | M203: 10874.30593 | N203: 657.711895 | O203: =+AVERAGE($L$203:$N$203) -> 5468.703622 | P203: =+AVERAGE($L$203:$N$203) -> 5468.703622 | Q203: 5468.703622 | R203: 5468.703622 | S203: 5468.703622 | T203: 5468.703622 | U203: 5468.703622
B204: ARJ12 | C204: 2007 | D204: 2 | F204: =+[16]OM_EF_2017!G34 -> 0.535657388 | G204: 2147.392315 | H204: 6196.934516 | I204: 11548.43109 | J204: 11349.07458 | K204: 9975.93413 | L204: 7073.216074 | M204: 0 | N204: 0 | O204: 0 | P204: =+O204 -> 0 | Q204: 0 | R204: 0 | S204: 0 | T204: 0 | U204: 0
B205: ARJ13 | C205: 2008 | D205: 2 | F205: =+[16]OM_EF_2017!G35 -> 0.535657388 | G205: 8526.900641 | H205: 8851.283968 | I205: 10087.29019 | J205: 9758.3664 | K205: 4970.5612 | L205: 5371.6202 | M205: 0 | N205: 0 | O205: 0 | P205: 0 | Q205: 0 | R205: 0 | S205: 0 | T205: 0 | U205: 0
B206: ARJ14 | C206: 2008 | D206: 2 | F206: =+[16]OM_EF_2017!G36 -> 0.535657388 | G206: 7797.82554 | H206: 10123.33607 | I206: 9538.652815 | J206: 2570.0208 | K206: 7007.9094 | L206: 0 | M206: 0 | N206: 0 | O206: 0 | P206: 0 | Q206: 0 | R206: 0 | S206: 0 | T206: 0 | U206: 0
B207: ARJ15 | C207: 2008 | D207: 2 | F207: =+[16]OM_EF_2017!G37 -> 0.535657388 | G207: 0 | H207: 4892.938408 | I207: 11580.99053 | J207: 10493.6892 | K207: 9947.2014 | L207: 7564.2672 | M207: 8339.7396 | N207: 474.077 | O207: =+AVERAGE($L$207:$N$207) -> 5459.361267 | P207: =+AVERAGE($L$207:$N$207) -> 5459.361267 | Q207: 5459.361267 | R207: 5459.361267 | S207: 5459.361267 | T207: 5459.361267 | U207: 5459.361267
B208: Bulo Bulo
B209: BUL1 | C209: 2000 | D209: 45 | F209: =+[16]OM_EF_2017!G39 -> 0.5329347096 | G209: 320717 | H209: 327166 | I209: 106480 | J209: 287973.534 | K209: 269807.618 | L209: 253280.231 | M209: 223504.631 | N209: 237695.821 | O209: =+AVERAGE($L$209:$N$209) -> 238160.2277 | P209: =+AVERAGE($L$209:$N$209) -> 238160.2277 | Q209: 238160.2277 | R209: 238160.2277 | S209: 238160.2277 | T209: 238160.2277 | U209: 238160.2277
B210: BUL2 | C210: 2000 | D210: 45 | F210: =+[16]OM_EF_2017!G40 -> 0.5363084633 | G210: 331746 | H210: 326073 | I210: 289542 | J210: 202260.81 | K210: 173568.66 | L210: 33037.909 | M210: 15850.489 | N210: 77027.986 | O210: =+AVERAGE($L$210:$N$210) -> 41972.128 | P210: =+AVERAGE($L$210:$N$210) -> 41972.128 | Q210: 41972.128 | R210: 41972.128 | S210: 41972.128 | T210: 41972.128 | U210: 41972.128
B211: BUL3 | C211: 2014 | D211: 49.02 | F211: =+[16]OM_EF_2017!G41 -> 0.5216888639 | K211: 265758.5813 | L211: 313954.442 | M211: 125500.576 | N211: 239710.459 | O211: =+AVERAGE($L$211:$N$211) -> 226388.4923 | P211: =+AVERAGE($L$211:$N$211) -> 226388.4923 | Q211: 226388.4923 | R211: 226388.4923 | S211: 226388.4923 | T211: 226388.4923 | U211: 226388.4923
B212: Carrasco | F212: =+[16]OM_EF_2017!G42 -> 0.6067264812 | G212: 743118.8202 | H212: 609577.5585 | I212: 772580.2 | J212: 667630.61 | K212: 815783.94 | L212: 516330.15 | M212: 440398.86 | N212: 552699.29 | O212: =+AVERAGE($L$212:$N$212) -> 503142.7667 | P212: =+AVERAGE($L$212:$N$212) -> 503142.7667 | Q212: 503142.7667 | R212: 503142.7667 | S212: 503142.7667 | T212: 503142.7667 | U212: 503142.7667
B213: CAR1 | C213: 1996 | D213: 56 | F213: =+[16]OM_EF_2017!G43 -> 0.5929520125
B214: CAR2 | C214: 1996 | D214: 56 | F214: =+[16]OM_EF_2017!G44 -> 0.6404805078
B215: CAR3 | D215: 24.4 | F215: =+[16]OM_EF_2017!G45 -> 0.5608717579 | H215: 7408.708638
B216: Entre Ríos
B217: ERI01 | C217: 2010 | D217: 23 | F217: =+[16]OM_EF_2017!G47 -> 0.5922417486 | G217: 94768 | H217: 186730 | I217: 193238 | J217: 176801 | K217: 173128 | L217: 75240 | M217: 152450 | N217: 36192 | O217: =+AVERAGE($L$217:$N$217) -> 87960.66667 | P217: =+AVERAGE($L$217:$N$217) -> 87960.66667 | Q217: 87960.66667 | R217: 87960.66667 | S217: 87960.66667 | T217: 87960.66667 | U217: 87960.66667
B218: ERI02 | C218: 2010 | D218: 23 | F218: =+[16]OM_EF_2017!G48 -> 0.5917090506 | G218: 123773.2823 | H218: 193364 | I218: 193432 | J218: 175773 | K218: 165138 | L218: 85293 | M218: 168623 | N218: 52744 | O218: =+AVERAGE($L$218:$N$218) -> 102220 | P218: =+AVERAGE($L$218:$N$218) -> 102220 | Q218: 102220 | R218: 102220 | S218: 102220 | T218: 102220 | U218: 102220
B219: ERI03 | C219: 2010 | D219: 25 | F219: =+[16]OM_EF_2017!G49 -> 0.5917682393 | G219: 109541.1268 | H219: 170825 | I219: 196674 | J219: 195325 | K219: 173443 | L219: 74301 | M219: 182321 | N219: 60409 | O219: =+AVERAGE($L$219:$N$219) -> 105677 | P219: =+AVERAGE($L$219:$N$219) -> 105677 | Q219: 105677 | R219: 105677 | S219: 105677 | T219: 105677 | U219: 105677
... 125 more rows

Sheet Proyectos Adicionales 100%-RE
B4: Capacity additions 2018 - 2030
B7: Plant Unit | C7: Commissioning date | D7: Capacity [MW] | E7: Capacity factor | F7: Emission factor [tCO2/MWh]
B8: Natural gas
B9: Guaracachi
B10: =+B9 -> Guaracachi
B11: Santa Cruz
B12: =+B11 -> Santa Cruz
B13: Carrasco
B14: =+B13 -> Carrasco
B15: Natural Gas A
B16: =+B15 -> Natural Gas A
B17: Natural Gas B
B18: =+B17 -> Natural Gas B
B20: Plant Unit | C20: Commissioning date | D20: Capacity [MW] | E20: Capacity factor
B21: Hydropower
B22: Banda Azul
B23: =+B22 -> Banda Azul | C23: 2020 | D23: 93 | E23: 0.5
B24: Pequenas centrales
B25: =+B24 -> Pequenas centrales | C25: 2020 | D25: 200 | E25: 0.5
B26: Carrizal
B27: =+B26 -> Carrizal | C27: 2025 | D27: 347 | E27: 0.5
B28: Cambari
B29: =+B28 -> Cambari | C29: 2025 | D29: 93 | E29: 0.5
B30: Cuenca Corani
B31: =+B30 -> Cuenca Corani | C31: 2025 | D31: 220 | E31: 0.5
B32: Moliineros
B33: =+B32 -> Moliineros | C33: 2025 | D33: 132 | E33: 0.5
B34: Rositas
B35: =+B34 -> Rositas | C35: 2025 | D35: 600 | E35: 0.5
B36: Icla
B37: =+B36 -> Icla | C37: 2029 | D37: 102 | E37: 0.53
B38: Margarita
B39: =+B38 -> Margarita | C39: 2029 | D39: 150 | E39: 0.53
B40: Río Grande (excl. Juntas)
B41: =+B40 -> Río Grande (excl. Juntas) | C41: 2029 | D41: =3072-172 -> 2900 | E41: 0.53
B42: Otras nuevas plantas
B43: =+B42 -> Otras nuevas plantas | C43: 2029 | D43: 360 | E43: 0.53
B44: Cachuela Esperanza
B45: =+B44 -> Cachuela Esperanza | C45: 2029 | D45: 990 | E45: 0.6572575066
B46: El Bala
B47: =B46 -> El Bala | C47: 2030 | D47: 1680 | E47: 0.5
B51: Plant Unit | C51: Commissioning date | D51: Capacity [MW] | E51: Capacity factor
B52: Wind
B53: Wind A
B54: Wind A | C54: 2030 | D54: 276 | E54: 0.35
B55: Wind B
B56: Wind B
B57: Wind C
B58: Wind C
B61: Plant Unit | C61: Commissioning date | D61: Capacity [MW] | E61: Capacity factor
B62: Solar PV
B63: Oruro
B64: Oruro II | C64: 2019 | D64: 50 | E64: 0.24
B65: Riberalta - Guayamerin
B66: =B65 -> Riberalta - Guayamerin | C66: 2020 | D66: 5 | E66: 0.24
B67: Solar A
B68: =+B67 -> Solar A | C68: 2030 | D68: 200 | E68: 0.24
B69: Solar B
B70: =B69 -> Solar B
B73: Plant Unit | C73: Commissioning date | D73: Capacity [MW] | E73: Capacity factor
B74: Geothermal
B75: Laguna Colorada
B76: =+B75 -> Laguna Colorada | C76: 2023 | D76: 100 | E76: 0.85
B79: Plant Unit | C79: Commissioning date | D79: Capacity [MW] | E79: Capacity factor
B80: Biomass
B81: Cobija
B82: =+B81 -> Cobija | C82: 2020 | D82: 20 | E82: 0.85
B83: Riberalta
B84: =+B83 -> Riberalta | C84: 2020 | D84: 20 | E84: 0.85

Sheet Proyectos
C3: Adiciones de proyectos (1999 - 2021)
C4: Unidad | D4: Fecha Puesta en Marcha | E4: Capacidad (MW) | F4: Tecnologia | G4: Proyecto MDL
C5: Palillada | D5: 2021-08-01 | E5: 118.2 | F5: Hydro | G5: NO
C6: Umapalca | D6: 2021-07-01 | E6: 85.8 | F6: Hydro | G6: NO
C7: Sehuencas | D7: 2021-06-01 | E7: 198.6 | F7: Hydro | G7: NO
C8: Juntas | D8: 2021-06-01 | E8: 91.56 | F8: Hydro | G8: NO
C9: Warnes II | D9: 2021-05-01 | E9: 24 | F9: Eolico | G9: NO
C10: La Ventolera | D10: 2021-05-01 | E10: 21 | F10: Eolico | G10: NO
C11: Planta Piloto Goetermica | D11: 2020-12-01 | E11: 5 | F11: Geotermico | G11: NO
C12: CCSUR10 | D12: 2020-02-01 | E12: 36.72 | F12: Thermal | G12: NO
C13: CCWAR20 | D13: 2020-02-01 | E13: 40.34 | F13: Thermal | G13: NO
C14: CCERI50 | D14: 2019-12-01 | E14: 136.4 | F14: Thermal | G14: NO
C15: CCSUR20 | D15: 2019-12-01 | E15: 36.72 | F15: Thermal | G15: NO
C16: CCWAR10 | D16: 2019-12-01 | E16: 40.34 | F16: Thermal | G16: NO
C17: CCERI40 | D17: 2019-10-01 | E17: 136.4 | F17: Thermal | G17: NO
C18: CCERI30 | D18: 2019-08-01 | E18: 136.4 | F18: Thermal | G18: NO
C19: CCWAR40 | D19: 2019-08-01 | E19: 135.15 | F19: Thermal | G19: NO
C20: CCWAR30 | D20: 2019-07-01 | E20: 135.15 | F20: Thermal | G20: NO
C21: AGU01 | D21: 2019-05-01 | E21: 4.57 | F21: Biomass | G21: NO
C22: CCSUR40 | D22: 2019-04-01 | E22: 132.69 | F22: Thermal | G22: NO
C23: CCSUR30 | D23: 2019-02-01 | E23: 132.69 | F23: Thermal | G23: NO
C24: San José 2 | D24: 2019-02-01 | E24: 69 | F24: Hydro | G24: NO
C25: Warnes I | D25: 2020-05-01 | E25: 14.4 | F25: Eolico | G25: NO
C26: San Julian | D26: 2020-07-01 | E26: 39.6 | F26: Eolico | G26: NO
C27: El Dorado | D27: 2020-08-01 | E27: 54 | F27: Eolico | G27: NO
C28: Yunchara | D28: 2017-10-01 | E28: 5 | F28: Solar | G28: NO
C29: IAG01 | D29: 2017-07-01 | E29: 5 | F29: Biomasa | G29: NO
C30: Misicuni | D30: 2017-09-01 | E30: 120 | F30: Hidro | G30: NO
C31: SBU01 | D31: 2016-09-01 | E31: 12 | F31: Biomasa | G31: NO
C32: QOLLPANA II | D32: 2016-08-01 | E32: 24 | F32: Eolico | G32: NO
C33: WAR01 | D33: 2015-09-01 | E33: 40 | F33: Termico | G33: NO
C34: WAR02 | D34: 2015-09-01 | E34: 40 | F34: Termico | G34: NO
C35: WAR03 | D35: 2015-09-01 | E35: 40 | F35: Termico | G35: NO
C36: WAR04 | D36: 2015-09-01 | E36: 40 | F36: Termico | G36: NO
C37: WAR05 | D37: 2015-09-01 | E37: 40 | F37: Termico | G37: NO
C38: San Jacinto | D38: 2015-08-01 | E38: 7 | F38: Hidro | G38: NO
C39: UNA01 | D39: 2015-06-01 | E39: 6 | F39: Biomasa | G39: NO
C40: SUR01 | D40: 2014-09-01 | E40: 40 | F40: Termico | G40: NO
C41: SUR02 | D41: 2014-09-01 | E41: 40 | F41: Termico | G41: NO
C42: SUR03 | D42: 2014-09-01 | E42: 40 | F42: Termico | G42: NO
C43: SUR04 | D43: 2014-09-01 | E43: 40 | F43: Termico | G43: NO
C44: QOLLPANA I | D44: 2014-01-01 | E44: 3 | F44: Eolico | G44: NO
C45: BUL03 | D45: 2013-12-01 | E45: 50 | F45: Termico | G45: NO
C46: ALT2 | D46: 2013-03-01 | E46: 32.35 | F46: Termico | G46: NO
C47: ALT 1 | D47: 2012-10-01 | E47: 17.5 | F47: Termico | G47: NO
C48: Ciclo Comb. (GCH 12) | D48: 2012-08-01 | E48: 82 | F48: Termico | G48: SI
C49: VHE 5,6,7,8 | D49: 2012-08-01 | E49: 42 | F49: Termico | G49: NO
C50: Car 03 | D50: 2012-01-01 | E50: 25 | F50: Termico | G50: NO
C51: Moxos | D51: 2011-10-01 | E51: 28 | F51: Termico | G51: NO
C52: ERI01 | D52: 2010-05-01 | E52: 26.7825 | F52: Termico | G52: NO
C53: ERI02 | D53: 2010-05-01 | E53: 26.7825 | F53: Termico | G53: NO
C54: ERI03 | D54: 2010-05-01 | E54: 26.7825 | F54: Termico | G54: NO
C55: ERI04 | D55: 2010-05-01 | E55: 26.7825 | F55: Termico | G55: NO
C56: Arj 13-14-15 | D56: 2008-08-01 | E56: 4.8 | F56: Termico | G56: NO
C57: QUEHATA | D57: 2007-10-07 | E57: 1.8 | F57: Hidro | G57: NO
C58: Guabira Energia (GE) | D58: 2007-10-01 | E58: 16.6 | F58: Biomasa | G58: NO
C59: GCH 11 | D59: 2007-05-07 | E59: 60 | F59: Termico | G59: NO
C60: Arj 9-10-11-12 | D60: 2006-08-01 | E60: 6.4 | F60: Termico | G60: NO
C61: Santa Isabel SIS5 | D61: 2004-06-04 | E61: 21.3 | F61: Hidro | G61: NO
C62: Chojlla | D62: 2002-06-01 | E62: 38.4 | F62: Hidro | G62: SI
C63: Yanacachi | D63: 2002-06-01 | E63: 80 | F63: Hidro | G63: SI
C64: Landara LAN1and3 | D64: 2001-06-23 | E64: 5 | F64: Hidro | G64: NO
C65: Kilpani KIL3 | D65: 2001-05-01 | E65: 5 | F65: Hidro | G65: NO
C66: CECBB1 & 2 | D66: 2000-05-01 | E66: 85.88 | F66: Termico | G66: NO
C67: Huaji | D67: 1999-06-01 | E67: 29 | F67: Hidro | G67: NO

Sheet Eficiencia
A1: CNDC | U1: Informe de Precios de Nodo mayo - octubre 2018
A5: ANEXO 5F
A7: CARACTERISTICAS DE UNIDADES TERMICAS PARA LA TEMPERATURA MEDIA ANUAL
A8: TURBINAS A GAS
A10: Periodo mayo - octubre 2018
U11: Página 1 de 4
A12: UNIDAD | B12: FOR | C12: TEMP | D12: POTENCIA EN BORNES | E12: CP&T (1) | F12: POTENCIA INYECTADA | G12: PODER CALORIFICO | H12: COSTO DE COMBUSTIBLE | J12: RENDIMIENTO TERMICO | M12: O&M | N12: REPRESENTACION LINEAL DE COSTO | P12: COSTO (US$/MWh) | S12: RENDIMIENTO TERMICO | V12: Eje X | Y12: Eje Y | AB12: Estimacion Lineal | AD12: (MMBTU/MWh) | AE12: Eficiencia (%) | AF12: Tipo de Combustible | AG12: Factor de Emisiones | AH12: Factor de Emisiones
J13: 50% (2) | K13: 0.75 | L13: 1 | S13: (MMBTU/MWh) | V13: % carga | Y13: RENDIMIENTO TERMICO | AE13: ηm,y
B14: % | C14: °C | D14: MW | E14: % | F14: MW | G14: BTU/PC | H14: US$/MPC | I14: US$/MMBTU | J14: BTU/KWh | K14: BTU/KWh | L14: BTU/KWh | M14: US$/MWh | N14: a | O14: b | P14: Al 93% | Q14: Al 92% | R14: Al 90% | S14: Al 93% | T14: Al 92% | U14: Al 90% | Y14: =+J14 -> BTU/KWh | Z14: =+K14 -> BTU/KWh | AA14: BTU/KWh | AB14: a | AC14: b | AD14: =1-'[17]% despacho'!G9 -> 0.9142857143 | AG14: EFCO2 (tCO2/TJ) | AH14: EFEL,m,y
A16: GCH01 | B16: 11.95 | C16: 26 | D16: 18.62 | E16: 3.5 | F16: 17.97 | G16: 925.6 | H16: 1.131 | I16: 1.221910112 | J16: 16761 | K16: 14443 | L16: 12977 | M16: 3.135 | N16: 90.31159812 | O16: 14.76117535 | P16: 20.16581916 | Q16: 20.22467191 | R16: 20.3463082 | S16: 13.9378658 | T16: 13.98603034 | U16: 14.08557636 | V16: 0.5 | W16: 0.75 | X16: 1 | Y16: =+J16 -> 16761 | Z16: =+K16 -> 14443 | AA16: 12977 | AB16: =INDEX(LINEST(Y16:AA16,V16:X16),1,2) -> 20403 | AC16: =INDEX(LINEST(Y16:AA16,V16:X16),1,1) -> -7568 | AD16: =AB16+AC16*$AD$14 -> 13483.68571 | AE16: =3412/AD16 -> 0.2530465388 | AF16: Gas Natural | AG16: 54.3 | AH16: =((AG16*3.6)/1000)/AE16 -> 0.7725061206
A17: GCH02 | B17: 2.76 | C17: 26 | D17: 17.62 | E17: 3.5 | F17: 17 | G17: 925.6 | H17: 1.131 | I17: 1.221910112 | J17: 18220 | K17: 15214 | L17: 13610 | M17: 4.14 | N17: 103.102541 | O17: 15.5220927 | P17: 22.04344254 | Q17: 22.11432677 | R17: 22.26082086 | S17: 14.65201274 | T17: 14.71002375 | U17: 14.82991317 | V17: =+V16 -> 0.5 | W17: =+W16 -> 0.75 | X17: 1 | Y17: =+J17 -> 18220 | Z17: 15214 | AA17: 13610 | AB17: =INDEX(LINEST(Y17:AA17,V17:X17),1,2) -> 22596.33333 | AC17: =INDEX(LINEST(Y17:AA17,V17:X17),1,1) -> -9220 | AD17: =AB17+AC17*$AD$14 -> 14166.61905 | AE17: =3412/AD17 -> 0.2408478684 | AF17: Gas Natural | AG17: =+AG16 -> 54.3 | AH17: =((AG17*3.6)/1000)/AE17 -> 0.8116326763
A18: GCH04 | B18: 1.39 | C18: 26 | D18: 19.95 | E18: 3.5 | F18: 19.25 | G18: 925.6 | H18: 1.131 | I18: 1.221910112 | J18: 16884 | K18: 13887 | L18: 12867 | M18: 4.14 | N18: 99.33802024 | O18: 15.33239115 | P18: 20.88200122 | Q18: 20.94153967 | R18: 21.06453312 | S18: 13.70149985 | T18: 13.75022557 | U18: 13.85088227 | V18: =+V17 -> 0.5 | W18: 0.75 | X18: 1 | Y18: =+J18 -> 16884 | Z18: 13887 | AA18: 12867 | AB18: 20571.5 | AC18: -8034 | AD18: 13226.12857 | AE18: 0.2579742047 | AF18: Gas Natural | AG18: =+AG17 -> 54.3 | AH18: 0.7577501797
A19: GCH06 | B19: 3.42 | C19: 26 | D19: 20.71 | E19: 3.5 | F19: 19.99 | G19: 925.6 | H19: 1.131 | I19: 1.221910112 | J19: 16387 | K19: 13684 | L19: 12598 | M19: 4.065 | N19: 98.08046973 | O19: 15.2055394 | P19: 20.48151948 | Q19: 20.53889827 | R19: 20.65748324 | S19: 13.43512858 | T19: 13.48208686 | U19: 13.57913571 | V19: 0.5 | W19: 0.75 | X19: 1 | Y19: 16387 | Z19: 13684 | AA19: 12598 | AB19: 19906.5 | AC19: -7578 | AD19: 12978.04286 | AE19: 0.2629055889 | AF19: Gas Natural | AG19: 54.3 | AH19: 0.7435368751
A20: GCH09 | B20: 3.06 | C20: 26 | D20: 50.84 | E20: 3.5 | F20: 49.06 | G20: 925.6 | H20: 1.131 | I20: 1.221910112 | J20: 16181 | K20: 13345 | L20: 11934 | M20: 10.624 | N20: 272.9908514 | O20: 20.34557184 | P20: 26.32827733 | Q20: 26.3932203 | R20: 26.52883008 | S20: 12.85223616 | T20: 12.90538489 | U20: 13.01636669 | V20: 0.5 | W20: 0.75 | X20: 1 | Y20: 16181 | Z20: 13345 | AA20: 11934 | AB20: 20190.5 | AC20: -8494 | AD20: 12424.55714 | AE20: 0.2746174339 | AF20: Gas Natural | AG20: 54.3 | AH20: 0.7118266208
A21: GCH10 | B21: 3.27 | C21: 26 | D21: 51.85 | E21: 3.5 | F21: 50.04 | G21: 925.6 | H21: 1.131 | I21: 1.221910112 | J21: 16181 | K21: 13345 | L21: 11934 | M21: 10.624 | N21: 278.4141551 | O21: 20.34557184 | P21: 26.327827 | Q21: 26.39279502 | R21: 26.52705841 | S21: 12.85186761 | T21: 12.90503684 | U21: 13.01491677 | V21: 0.5 | W21: 0.75 | X21: 1 | Y21: 16181 | Z21: 13345 | AA21: 11934 | AB21: 20190.5 | AC21: -8494 | AD21: 12424.55714 | AE21: 0.2746174339 | AF21: Gas Natural | AG21: 54.3 | AH21: 0.7118266208
A22: GCH11 | B22: 2.54 | C22: 26 | D22: 62.22 | E22: 3.5 | F22: 60.04 | G22: 925.6 | H22: 1.131 | I22: 1.221910112 | J22: 13827 | K22: 11267 | L22: 10242 | M22: 10.624 | N22: 278.7529515 | O22: 19.04295456 | P22: 24.03494868 | Q22: 24.0891702 | R22: 24.20122532 | S22: 10.97539708 | T22: 11.01977147 | U22: 11.11147635 | V22: 0.5 | W22: 0.75 | X22: 1 | Y22: 13827 | Z22: 11267 | AA22: 10242 | AB22: 17156.16667 | AC22: -7170 | AD22: 10600.7381 | AE22: 0.3218643805 | AF22: Gas Natural | AG22: 54.3 | AH22: 0.6073365425
A23: GCH09COM | B23: 5.79 | C23: 26 | D23: 103.96 | E23: 3.5 | F23: 100.32 | G23: 925.6 | H23: 1.131 | I23: 1.221910112 | J23: 7636 | K23: 7378 | L23: 7218 | M23: 3.008 | N23: 55.6361834 | O23: 11.60780337 | P23: 12.20411831 | Q23: 12.21064424 | R23: 12.22399767 | S23: 7.526018659 | T23: 7.53135942 | U23: 7.542287749 | V23: 0.5 | W23: 0.75 | X23: 1 | Y23: 7636 | Z23: 7378 | AA23: 7218 | AB23: 8037.666667 | AC23: -836 | AD23: 7273.32381 | AE23: 0.4691115217 | AF23: Gas Natural | AG23: 54.3 | AH23: 0.4167026197
A24: GCH10COM | B24: 5.92 | C24: 26 | D24: 102.87 | E24: 3.5 | F24: 99.27 | G24: 925.6 | H24: 1.131 | I24: 1.221910112 | J24: 7636 | K24: 7378 | L24: 7218 | M24: 3.008 | N24: 55.05284904 | O24: 11.60780337 | P24: 12.20412973 | Q24: 12.21059379 | R24: 12.22402062 | S24: 7.526028005 | T24: 7.531318137 | U24: 7.54230653 | V24: 0.5 | W24: 0.75 | X24: 1 | Y24: 7636 | Z24: 7378 | AA24: 7218 | AB24: 8037.666667 | AC24: -836 | AD24: 7273.32381 | AE24: 0.4691115217 | AF24: Gas Natural | AG24: 54.3 | AH24: 0.4167026197
A25: SCZ01 | B25: 0.6 | C25: 26 | D25: 20.76 | E25: 2.3 | F25: 20.28 | G25: 925.6 | H25: 1.131 | I25: 1.221910112 | J25: 16152 | K25: 13915 | L25: 12683 | M25: 3.135 | N25: 90.51245448 | O25: 14.65262941 | P25: 19.45180515 | Q25: 19.50324326 | R25: 19.61221596 | S25: 13.3535233 | T25: 13.39561977 | U25: 13.48480202 | V25: 0.5 | W25: 0.75 | X25: 1 | Y25: 16152 | Z25: 13915 | AA25: 12683 | AB25: 19453.5 | AC25: -6938 | AD25: 13110.18571 | AE25: 0.2602556573 | AF25: Gas Natural | AG25: 54.3 | AH25: 0.7511075919
A26: SCZ02 | B26: 2.24 | C26: 26 | D26: 21.19 | E26: 2.3 | F26: 20.7 | G26: 925.6 | H26: 1.131 | I26: 1.221910112 | J26: 16523 | K26: 14234 | L26: 12816 | M26: 3.135 | N26: 99.39766786 | O26: 14.52137794 | P26: 19.68489315 | Q26: 19.74184368 | R26: 19.85673316 | S26: 13.54428037 | T26: 13.59088816 | U26: 13.68491266 | V26: 0.5 | W26: 0.75 | X26: 1 | Y26: 16523 | Z26: 14234 | AA26: 12816 | AB26: 20084.83333 | AC26: -7414 | AD26: 13306.31905 | AE26: 0.2564195243 | AF26: Gas Natural | AG26: 54.3 | AH26: 0.7623444453
A27: GBE01 | B27: 12.65 | C27: 26 | D27: 21 | E27: 1.7 | F27: 20.64 | M27: 2.083 | N27: 0 | O27: 2.083 | P27: 2.083 | Q27: 2.083 | R27: 2.083 | S27: 0 | T27: 0 | U27: 0 | AF27: Biomasa
A28: IAG01 | B28: 3 | C28: 26 | D28: 5 | E28: 0 | F28: 5 | M28: 3.5 | N28: 0 | O28: 3.5 | P28: 3.5 | Q28: 3.5 | R28: 3.5 | S28: 0 | T28: 0 | U28: 0 | AF28: Biomasa
A29: UNA01 | B29: 5 | C29: 26 | D29: 14.57 | E29: 0 | F29: 14.57 | M29: 3.5 | N29: -9.139865171e-14 | O29: 3.5 | P29: 3.5 | Q29: 3.5 | R29: 3.5 | S29: 0 | T29: 0 | U29: 0 | AF29: Biomasa
A30: SBU01 | B30: 5.25 | C30: 26 | D30: 6 | E30: 0 | F30: 6 | M30: 3.5 | N30: 0 | O30: 3.5 | P30: 3.5 | Q30: 3.5 | R30: 3.5 | S30: 0 | T30: 0 | U30: 0 | AF30: Biomasa
A31: BUL01 | B31: 11.34 | C31: 26 | D31: 44.82 | E31: 2.6 | F31: 43.65 | G31: 925.4 | H31: 1.131 | I31: 1.222174195 | J31: 10516 | K31: 9420 | L31: 8715 | M31: 4.127 | N31: 102.6905516 | O31: 12.79681531 | P31: 15.32676238 | Q31: 15.35385095 | R31: 15.41047149 | S31: 9.163802035 | T31: 9.185966287 | U31: 9.232294004 | V31: =+V26 -> 0.5 | W31: =+W26 -> 0.75 | X31: 1 | Y31: 10516 | Z31: 9420 | AA31: 8715 | AB31: 12251.83333 | AC31: -3602 | AD31: 8958.57619 | AE31: =3412/AD31 -> 0.3808640935 | AF31: =+AF26 -> Gas Natural | AG31: =+AG26 -> 54.3 | AH31: =((AG31*3.6)/1000)/AE31 -> 0.5132539489
A32: BUL02 | B32: 13.35 | C32: 26 | D32: 44.82 | E32: 2.6 | F32: 43.65 | G32: 925.4 | H32: 1.131 | I32: 1.222174195 | J32: 10516 | K32: 9420 | L32: 8715 | M32: 4.127 | N32: 102.6905516 | O32: 12.79681531 | P32: 15.32676238 | Q32: 15.35385095 | R32: 15.41047149 | S32: 9.163802035 | T32: 9.185966287 | U32: 9.232294004 | V32: 0.5 | W32: 0.75 | X32: 1 | Y32: 10516 | Z32: 9420 | AA32: 8715 | AB32: 12251.83333 | AC32: -3602 | AD32: 8958.57619 | AE32: 0.3808640935 | AF32: =+AF31 -> Gas Natural | AG32: =+AG31 -> 54.3 | AH32: 0.5132539489
A33: BUL03 | B33: 4.74 | C33: 26 | D33: 49.02 | E33: 2.6 | F33: 47.75 | G33: 925.4 | H33: 1.131 | I33: 1.222174195 | J33: 10179 | K33: 9015 | L33: 8535 | M33: 4.127 | N33: 100.0095171 | O33: 12.76797444 | P33: 15.01993384 | Q33: 15.04453982 | R33: 15.09485944 | S33: 8.912750644 | T33: 8.932883597 | U33: 8.97405581 | V33: 0.5 | W33: 0.75 | X33: 1 | Y33: 10179 | Z33: 9015 | AA33: 8535 | AB33: 11709 | AC33: -3288 | AD33: 8702.828571 | AE33: 0.3920564414 | AF33: =+AF32 -> Gas Natural | AG33: 54.3 | AH33: 0.4986016791
A34: CAR01 | B34: 1.38 | C34: 26 | D34: 53.65 | E34: 2.5 | F34: 52.31 | G34: 929.5 | H34: 1.131 | I34: 1.216783217 | J34: 11489 | K34: 10175 | L34: 9745 | M34: 3.015 | N34: 114.1637578 | O34: 12.99386958 | P34: 15.34050386 | Q34: 15.36585707 | R34: 15.41875823 | S34: 10.12958076 | T34: 10.15041702 | U34: 10.19389326 | V34: =+V33 -> 0.5 | W34: 0.75 | X34: 1 | Y34: 11489 | Z34: 10175 | AA34: 9745 | AB34: 13085.66667 | AC34: -3488 | AD34: 9896.638095 | AE34: 0.3447635416 | AF34: Gas Natural | AG34: 54.3 | AH34: 0.566997308
A35: CAR02 | B35: 2.85 | C35: 26 | D35: 55.39 | E35: 2.5 | F35: 54.01 | G35: 929.5 | H35: 1.131 | I35: 1.216783217 | J35: 11482 | K35: 10271 | L35: 9933 | M35: 3.015 | N35: 103.9289591 | O35: 13.47154825 | P35: 15.54060975 | Q35: 15.56309502 | R35: 15.60956428 | S35: 10.2940356 | T35: 10.31251488 | U35: 10.35070513 | V35: 0.5 | W35: 0.75 | X35: 1 | Y35: 11482 | Z35: 10271 | AA35: 9933 | AB35: 12885.5 | AC35: -3098 | AD35: 10053.04286 | AE35: 0.3393997269 | AF35: Gas Natural | AG35: 54.3 | AH35: 0.5759580357
A36: CAR03 | B36: 5.07 | C36: 26 | D36: 24.32 | E36: 2.5 | F36: 23.71 | G36: 929.5 | H36: 1.131 | I36: 1.216783217 | J36: 11619 | K36: 10356 | L36: 9749 | M36: 5.25 | N36: 56.59693214 | O36: 15.07671084 | P36: 17.64346513 | Q36: 17.67171002 | R36: 17.72886324 | S36: 10.18543399 | T36: 10.20864674 | U36: 10.25561749 | V36: 0.5 | W36: 0.75 | X36: 1 | Y36: 11619 | Z36: 10356 | AA36: 9749 | AB36: 13379.66667 | AC36: -3740 | AD36: 9960.238095 | AE36: =3412/AD36 -> 0.3425620921 | AF36: Gas Natural | AG36: 54.3 | AH36: 0.5706410735
A37: VHE01 | B37: 8.97 | C37: 18 | D37: 18.52 | E37: 0.7 | F37: 18.39 | G37: 929.9 | H37: 1.131 | I37: 1.216259813 | J37: 14467 | K37: 12428 | L37: 11519 | M37: 2.168 | N37: 66.45117526 | O37: 12.6655348 | P37: 16.55156844 | Q37: 16.59290922 | R37: 16.68071155 | S37: 11.82606569 | T37: 11.86005578 | U37: 11.93224622 | V37: 0.5 | W37: 0.75 | X37: 1 | Y37: 14467 | Z37: 12428 | AA37: 11519 | AB37: 17226.66667 | AC37: -5896 | AD37: 11836.0381 | AE37: 0.2882721374 | AF37: Gas Natural | AG37: 54.3 | AH37: 0.67810924
A38: VHE02 | B38: 0.52 | C38: 18 | D38: 18.81 | E38: 0.7 | F38: 18.68 | G38: 929.9 | H38: 1.131 | I38: 1.216259813 | J38: 14152 | K38: 12315 | L38: 11560 | M38: 1.267 | N38: 59.08669001 | O38: 12.25076993 | P38: 15.65242163 | Q38: 15.68804102 | R38: 15.76574256 | S38: 11.82758936 | T38: 11.85687537 | U38: 11.92076102 | V38: 0.5 | W38: 0.75 | X38: 1 | Y38: 14152 | Z38: 12315 | AA38: 11560 | AB38: 16563.66667 | AC38: -5184 | AD38: 11824.00952 | AE38: 0.2885653968 | AF38: Gas Natural | AG38: 54.3 | AH38: 0.6774201002
A39: VHE03 | B39: 10.65 | C39: 18 | D39: 18.32 | E39: 0.7 | F39: 18.19 | G39: 929.9 | H39: 1.131 | I39: 1.216259813 | J39: 14815 | K39: 12533 | L39: 11435 | M39: 1.267 | N39: 75.67913829 | O39: 11.1325516 | P39: 15.60531391 | Q39: 15.65611038 | R39: 15.75558998 | S39: 11.78885774 | T39: 11.83062223 | U39: 11.91241364 | V39: 0.5 | W39: 0.75 | X39: 1 | Y39: 14815 | Z39: 12533 | AA39: 11435 | AB39: 17997.66667 | AC39: -6760 | AD39: 11817.09524 | AE39: 0.2887342389 | AF39: Gas Natural | AG39: 54.3 | AH39: 0.6770239675
A40: VHE04 | B40: 2.01 | C40: 18 | D40: 18.63 | E40: 0.7 | F40: 18.5 | G40: 929.9 | H40: 1.131 | I40: 1.216259813 | J40: 14044 | K40: 12173 | L40: 11383 | M40: 1.267 | N40: 60.16412949 | O40: 11.94947561 | P40: 15.44535763 | Q40: 15.48438334 | R40: 15.56293685 | S40: 11.65734285 | T40: 11.6894295 | U40: 11.75401563 | V40: 0.5 | W40: 0.75 | X40: 1 | Y40: 14044 | Z40: 12173 | AA40: 11383 | AB40: 16524.83333 | AC40: -5322 | AD40: 11659.00476 | AE40: 0.2926493358 | AF40: Gas Natural | AG40: 54.3 | AH40: 0.667966662
A41: VHE05 | B41: 2.66 | C41: 18 | D41: 10.58 | E41: 0.7 | F41: 10.51 | G41: 929.9 | H41: 1.131 | I41: 1.216259813 | J41: 12381 | K41: 10642 | L41: 9861 | M41: 8.129 | N41: 32.46329261 | O41: 17.12006323 | P41: 20.4428158 | Q41: 20.47717725 | R41: 20.55170093 | S41: 10.12433007 | T41: 10.15258181 | U41: 10.21385463 | V41: 0.5 | W41: 0.75 | X41: 1 | Y41: 12381 | Z41: 10642 | AA41: 9861 | AB41: 14741.33333 | AC41: -5040 | AD41: 10133.33333 | AE41: 0.3367105263 | AF41: Gas Natural | AG41: 54.3 | AH41: 0.5805580305
A42: VHE06 | B42: 3.27 | C42: 18 | D42: 10.58 | E42: 0.7 | F42: 10.51 | G42: 929.9 | H42: 1.131 | I42: 1.216259813 | J42: 12381 | K42: 10642 | L42: 9861 | M42: 8.129 | N42: 32.46329261 | O42: 17.12006323 | P42: 20.4428158 | Q42: 20.47717725 | R42: 20.55170093 | S42: 10.12433007 | T42: 10.15258181 | U42: 10.21385463 | V42: 0.5 | W42: 0.75 | X42: 1 | Y42: 12381 | Z42: 10642 | AA42: 9861 | AB42: 14741.33333 | AC42: -5040 | AD42: 10133.33333 | AE42: 0.3367105263 | AF42: Gas Natural | AG42: 54.3 | AH42: 0.5805580305
A43: VHE07 | B43: 2.59 | C43: 18 | D43: 10.58 | E43: 0.7 | F43: 10.51 | G43: 929.9 | H43: 1.131 | I43: 1.216259813 | J43: 12381 | K43: 10642 | L43: 9861 | M43: 8.129 | N43: 32.46329261 | O43: 17.12006323 | P43: 20.4428158 | Q43: 20.47717725 | R43: 20.55170093 | S43: 10.12433007 | T43: 10.15258181 | U43: 10.21385463 | V43: 0.5 | W43: 0.75 | X43: 1 | Y43: 12381 | Z43: 10642 | AA43: 9861 | AB43: 14741.33333 | AC43: -5040 | AD43: 10133.33333 | AE43: 0.3367105263 | AF43: Gas Natural | AG43: 54.3 | AH43: 0.5805580305
A44: VHE08 | B44: 2.89 | C44: 18 | D44: 10.58 | E44: 0.7 | F44: 10.51 | G44: 929.9 | H44: 1.131 | I44: 1.216259813 | J44: 12381 | K44: 10642 | L44: 9861 | M44: 8.129 | N44: 32.46329261 | O44: 17.12006323 | P44: 20.4428158 | Q44: 20.47717725 | R44: 20.55170093 | S44: 10.12433007 | T44: 10.15258181 | U44: 10.21385463 | V44: 0.5 | W44: 0.75 | X44: 1 | Y44: 12381 | Z44: 10642 | AA44: 9861 | AB44: 14741.33333 | AC44: -5040 | AD44: 10133.33333 | AE44: 0.3367105263 | AF44: Gas Natural | AG44: 54.3 | AH44: 0.5805580305
A45: ARJ08 | B45: 0.29 | C45: 15 | D45: 18.39 | E45: 2.9 | F45: 17.86 | G45: 965.4 | H45: 1.131 | I45: 1.171535115 | J45: 14347 | K45: 12590 | L45: 11586 | M45: 1.389 | N45: 61.6732068 | O45: 12.02762251 | P45: 15.74063918 | Q45: 15.78131739 | R45: 15.86540763 | S45: 12.25028511 | T45: 12.28500726 | U45: 12.35678508 | V45: 0.5 | W45: 0.75 | X45: 1 | Y45: 14347 | Z45: 12590 | AA45: 11586 | AB45: 16982.5 | AC45: -5522 | AD45: 11933.81429 | AE45: 0.2859102646 | AF45: Gas Natural | AG45: 54.3 | AH45: 0.6837110248
A46: ARJ09 | B46: 17.66 | C46: 15 | D46: 1.49 | E46: 2.9 | F46: 1.45 | G46: 965.4 | H46: 1.131 | I46: 1.171535115 | J46: 10136 | K46: 9773 | L46: 9360 | M46: 15.453 | N46: 2.112782088 | O46: 25.32413112 | P46: 26.88915488 | Q46: 26.91268908 | R46: 26.93694187 | S46: 9.7616834 | T46: 9.781771737 | U46: 9.802473458 | V46: 0.6 | W46: 0.75 | X46: 1 | Y46: 10136 | Z46: 9773 | AA46: 9360 | AB46: 11252.97959 | AC46: -1910.612245 | AD46: 9506.134111 | AE46: 0.3589261376 | AF46: Gas Natural | AG46: 54.3 | AH46: 0.5446245885
A47: ARJ11 | B47: 17.33 | C47: 15 | D47: 1.49 | E47: 2.9 | F47: 1.45 | G47: 965.4 | H47: 1.131 | I47: 1.171535115 | J47: 10318 | K47: 9920 | L47: 9476 | M47: 15.453 | N47: 2.288847262 | O47: 25.34536285 | P47: 27.04080526 | Q47: 27.06630064 | R47: 27.0925745 | S47: 9.891129267 | T47: 9.912891632 | U47: 9.935318496 | V47: 0.6 | W47: 0.75 | X47: 1 | Y47: 10318 | Z47: 9920 | AA47: 9476 | AB47: 11527.28571 | AC47: -2071.428571 | AD47: 9633.408163 | AE47: 0.3541841 | AF47: Gas Natural | AG47: 54.3 | AH47: 0.5519163622
A48: ARJ12 | B48: 21.3 | C48: 15 | D48: 1.6 | E48: 2.9 | F48: 1.55 | G48: 965.4 | H48: 1.131 | I48: 1.171535115 | J48: 10004 | K48: 9154 | L48: 9050 | M48: 15.453 | N48: 1.73689828 | O48: 25.21280599 | P48: 26.41898535 | Q48: 26.42742017 | R48: 26.45344762 | S48: 9.360355667 | T48: 9.367555469 | U48: 9.389772 | V48: =+V45 -> 0.5 | W48: 0.75 | X48: 1 | Y48: 10004 | Z48: 9154 | AA48: 9050 | AB48: 10833.66667 | AC48: -1908 | AD48: 9089.209524 | AE48: 0.3753901801 | AF48: Gas Natural | AG48: 54.3 | AH48: 0.5207381822
A49: ARJ13 | B49: 22.37 | C49: 15 | D49: 1.55 | E49: 2.9 | F49: 1.51 | G49: 965.4 | H49: 1.131 | I49: 1.171535115 | J49: 9587 | K49: 9284 | L49: 8846 | M49: 15.453 | N49: 2.138658352 | O49: 24.75210449 | P49: 26.2797176 | Q49: 26.29070762 | R49: 26.3246474 | S49: 9.241479375 | T49: 9.250860248 | U49: 9.279830592 | V49: =+V47 -> 0.6 | W49: 0.75 | X49: 1 | Y49: 9587 | Z49: 9284 | AA49: 8846 | AB49: 10682.09184 | AC49: -1842.244898 | AD49: 8997.753644 | AE49: 0.379205759 | AF49: Gas Natural | AG49: 54.3 | AH49: 0.5154985001
A50: ARJ14 | B50: 23.51 | C50: 15 | D50: 1.51 | E50: 2.9 | F50: 1.47 | G50: 965.4 | H50: 1.131 | I50: 1.171535115 | J50: 9792 | K50: 9358 | L50: 9037 | M50: 15.453 | N50: 2.011137329 | O50: 25.00280129 | P50: 26.47078474 | Q50: 26.49253265 | R50: 26.52639018 | S50: 9.404570639 | T50: 9.423134233 | U50: 9.452034375 | V50: =+V49 -> 0.6 | W50: 0.75 | X50: 1 | Y50: 9792 | Z50: 9358 | AA50: 9037 | AB50: 10825.96939 | AC50: -1825.918367 | AD50: 9156.558309 | AE50: 0.3726290911 | AF50: Gas Natural | AG50: 54.3 | AH50: 0.5245967228
A51: ARJ15 | B51: 23.67 | C51: 15 | D51: 1.6 | E51: 2.9 | F51: 1.55 | G51: 965.4 | H51: 1.131 | I51: 1.171535115 | J51: 10004 | K51: 9154 | L51: 9050 | M51: 15.453 | N51: 1.73689828 | O51: 25.21280599 | P51: 26.41898535 | Q51: 26.42742017 | R51: 26.45344762 | S51: 9.360355667 | T51: 9.367555469 | U51: 9.389772 | V51: =+V48 -> 0.5 | W51: 0.75 | X51: 1 | Y51: 10004 | Z51: 9154 | AA51: 9050 | AB51: 10833.66667 | AC51: -1908 | AD51: 9089.209524 | AE51: 0.3753901801 | AF51: Gas Natural | AG51: 54.3 | AH51: 0.5207381822
A52: KEN01 | B52: 16 | C52: 10 | D52: 9.35 | E52: 5 | F52: 8.88 | G52: 944 | H52: 1.131 | I52: 1.19809322 | J52: 15355 | K52: 12990 | L52: 12074 | M52: 5.63 | N52: 38.06960003 | O52: 16.69157537 | P52: 21.30048579 | Q52: 21.35125714 | R52: 21.45623119 | S52: 13.07952129 | T52: 13.12189809 | U52: 13.20951569 | V52: 0.5 | W52: 0.75 | X52: 1 | Y52: 15355 | Z52: 12990 | AA52: 12074 | AB52: 18394.5 | AC52: -6562 | AD52: 12394.95714 | AE52: 0.275273239 | AF52: Gas Natural | AG52: 54.3 | AH52: 0.7101307803
A53: KEN02 | B53: 5.18 | C53: 10 | D53: 9.35 | E53: 5 | F53: 8.88 | G53: 944 | H53: 1.131 | I53: 1.19809322 | J53: 15259 | K53: 12731 | L53: 11982 | M53: 5.63 | N53: 37.53539647 | O53: 16.58087156 | P53: 21.12510842 | Q53: 21.17516733 | R53: 21.27866836 | S53: 12.93314089 | T53: 12.97492304 | U53: 13.06131117 | V53: 0.5 | W53: 0.75 | X53: 1 | Y53: 15259 | Z53: 12731 | AA53: 11982 | AB53: 18239.5 | AC53: -6554 | AD53: 12247.27143 | AE53: 0.2785926661 | AF53: Gas Natural | AG53: 54.3 | AH53: 0.7016695835
A54: ALT01 | B54: 4.67 | C54: 10 | D54: 17.5 | E54: 1.3 | F54: 17.27 | G54: 944 | H54: 1.131 | I54: 1.19809322 | J54: 11396 | K54: 10222 | L54: 9682 | M54: 7.335 | N54: 36.23761091 | O54: 17.00551007 | P54: 19.26189929 | Q54: 19.28603939 | R54: 19.33740266 | S54: 9.954900911 | T54: 9.975049675 | U54: 10.01792052 | V54: 0.5 | W54: 0.75 | X54: 1 | Y54: 11396 | Z54: 10222 | AA54: 9682 | AB54: 13004.33333 | AC54: -3428 | AD54: 9870.161905 | AE54: 0.3456883517 | AF54: Gas Natural | AG54: 54.3 | AH54: 0.5654804364
A55: ALT02 | B55: 7.51 | C55: 10 | D55: 32.35 | E55: 1.3 | F55: 31.93 | G55: 944 | H55: 1.131 | I55: 1.19809322 | J55: 9522 | K55: 8531 | L55: 8140 | M55: 6.082 | N55: 53.57650797 | O55: 14.28397126 | P55: 16.08850168 | Q55: 16.10754199 | R55: 16.14815039 | S55: 8.352022621 | T55: 8.367914802 | U55: 8.401808988 | V55: 0.5 | W55: 0.75 | X55: 1 | Y55: 9522 | Z55: 8531 | AA55: 8140 | AB55: 10804 | AC55: -2764 | AD55: 8276.914286 | AE55: 0.4122309211 | AF55: Gas Natural | AG55: 54.3 | AH55: 0.4742002358
A56: ERI01 | B56: 0.93 | C56: 26 | D56: 28.72 | E56: 2.6 | F56: 27.97 | G56: 930.7 | H56: 1.131 | I56: 1.215214355 | J56: 11812 | K56: 10653 | L56: 9767 | M56: 7.154 | N56: 75.05735089 | O56: 16.78186626 | P56: 19.66757756 | Q56: 19.69898056 | R56: 19.76388259 | S56: 10.29742408 | T56: 10.32326561 | U56: 10.3766735 | V56: 0.5 | W56: 0.75 | X56: 1 | Y56: 11812 | Z56: 10653 | AA56: 9767 | AB56: 13811.5 | AC56: -4090 | AD56: 10072.07143 | AE56: 0.338758519 | AF56: Gas Natural | AG56: 54.3 | AH56: 0.5770482189
A57: ERI02 | B57: 0.77 | C57: 26 | D57: 28.04 | E57: 2.6 | F57: 27.31 | G57: 930.7 | H57: 1.131 | I57: 1.215214355 | J57: 12203 | K57: 10504 | L57: 9728 | M57: 7.154 | N57: 86.09909545 | O57: 16.19711241 | P57: 19.58684058 | Q57: 19.62326026 | R57: 19.69992345 | S57: 10.23098561 | T57: 10.26095537 | U57: 10.32404152 | V57: 0.5 | W57: 0.75 | X57: 1 | Y57: 12203 | Z57: 10504 | AA57: 9728 | AB57: 14524.16667 | AC57: -4950 | AD57: 9998.452381 | AE57: 0.3412528129 | AF57: Gas Natural | AG57: 54.3 | AH57: 0.572830443
A58: ERI03 | B58: 1.41 | C58: 26 | D58: 29.13 | E58: 2.6 | F58: 28.37 | G58: 930.7 | H58: 1.131 | I58: 1.215214355 | J58: 11869 | K58: 10149 | L58: 9786 | M58: 7.154 | N58: 72.64519967 | O58: 16.75817688 | P58: 19.51197519 | Q58: 19.54151786 | R58: 19.60366061 | S58: 10.16937888 | T58: 10.19368954 | U58: 10.24482681 | V58: 0.5 | W58: 0.75 | X58: 1 | Y58: 11869 | Z58: 10149 | AA58: 9786 | AB58: 13725.83333 | AC58: -4166 | AD58: 9916.919048 | AE58: 0.3440584705 | AF58: Gas Natural | AG58: 54.3 | AH58: 0.5681592425
A59: ERI04 | B59: 1.54 | C59: 26 | D59: 28.44 | E59: 2.6 | F59: 27.7 | G59: 930.7 | H59: 1.131 | I59: 1.215214355 | J59: 11974 | K59: 10360 | L59: 9872 | M59: 7.154 | N59: 72.65014327 | O59: 16.84171314 | P59: 19.66198268 | Q59: 19.69297465 | R59: 19.75587853 | S59: 10.29282005 | T59: 10.31832335 | U59: 10.37008696 | V59: 0.5 | W59: 0.75 | X59: 1 | Y59: 11974 | Z59: 10360 | AA59: 9872 | AB59: 13888.33333 | AC59: -4204 | AD59: 10044.67619 | AE59: 0.3396824283 | AF59: Gas Natural | AG59: 54.3 | AH59: 0.5754786934
A60: KAR01 | B60: 12.8 | C60: 9 | D60: 11.31 | E60: 1.4 | F60: 11.15 | G60: 965.4 | H60: 1.131 | I60: 1.171535115 | J60: 15514 | K60: 14023 | L60: 13034 | M60: 5.63 | N60: 33.86545622 | O60: 18.16748295 | P60: 21.43319714 | Q60: 21.46820967 | R60: 21.54053635 | S60: 13.48930727 | T60: 13.5191933 | U60: 13.58092997 | V60: 0.5 | W60: 0.75 | X60: 1 | Y60: 15514 | Z60: 14023 | AA60: 13034 | AB60: 17910.33333 | AC60: -4960 | AD60: 13375.47619 | AE60: 0.2550937216 | AF60: Gas Natural | AG60: 54.3 | AH60: 0.7663065902
A61: SUR01 | B61: 1.5 | C61: 22 | D61: 43.83 | E61: 1.3 | F61: 43.26 | G61: 979.8 | H61: 1.131 | I61: 1.154317208 | J61: 11508 | K61: 9681 | L61: 8957 | M61: 3.398 | N61: 129.1237362 | O61: 10.88868526 | P61: 14.09832325 | Q61: 14.13300024 | R61: 14.20550355 | S61: 9.269829104 | T61: 9.299870234 | U61: 9.362680798 | V61: 0.5 | W61: 0.75 | X61: 1 | Y61: 11508 | Z61: 9681 | AA61: 8957 | AB61: 13875.16667 | AC61: -5102 | AD61: 9210.480952 | AE61: 0.3704475388 | AF61: Gas Natural | AG61: 54.3 | AH61: 0.5276860541
A62: SUR02 | B62: 0.66 | C62: 22 | D62: 43.31 | E62: 1.3 | F62: 42.75 | G62: 979.8 | H62: 1.131 | I62: 1.154317208 | J62: 11126 | K62: 9741 | L62: 9003 | M62: 3.398 | N62: 107.8999701 | O62: 11.44294452 | P62: 14.15672646 | Q62: 14.18639659 | R62: 14.2469978 | S62: 9.32042457 | T62: 9.34612819 | U62: 9.398627799 | V62: 0.5 | W62: 0.75 | X62: 1 | Y62: 11126 | Z62: 9741 | AA62: 9003 | AB62: 13141.16667 | AC62: -4246 | AD62: 9259.109524 | AE62: 0.3685019592 | AF62: Gas Natural | AG62: 54.3 | AH62: 0.5304720779
A63: SUR03 | B63: 0.6 | C63: 22 | D63: 44.16 | E63: 1.3 | F63: 43.59 | G63: 979.8 | H63: 1.131 | I63: 1.154317208 | J63: 11572 | K63: 9718 | L63: 8917 | M63: 3.398 | N63: 136.0126964 | O63: 10.7203027 | P63: 14.07532728 | Q63: 14.11214052 | R63: 14.18736098 | S63: 9.249907399 | T63: 9.281799185 | U63: 9.346963653 | V63: 0.5 | W63: 0.75 | X63: 1 | Y63: 11572 | Z63: 9718 | AA63: 8917 | AB63: 14051.5 | AC63: -5310 | AD63: 9196.642857 | AE63: 0.3710049475 | AF63: Gas Natural | AG63: 54.3 | AH63: 0.5268932432
A64: SUR04 | B64: 0.71 | C64: 22 | D64: 44.06 | E64: 1.3 | F64: 43.49 | G64: 979.8 | H64: 1.131 | I64: 1.154317208 | J64: 11478 | K64: 9743 | L64: 8934 | M64: 3.398 | N64: 130.5655382 | O64: 10.86997609 | P64: 14.09780151 | Q64: 14.13329871 | R64: 14.20583552 | S64: 9.269377113 | T64: 9.300128803 | U64: 9.362968383 | V64: 0.5 | W64: 0.75 | X64: 1 | Y64: 11478 | Z64: 9743 | AA64: 8934 | AB64: 13867.66667 | AC64: -5088 | AD64: 9215.780952 | AE64: 0.3702344942 | AF64: Gas Natural | AG64: 54.3 | AH64: 0.5279897012
A65: WAR01 | B65: 0.64 | C65: 26 | D65: 44.58 | E65: 1.3 | F65: 44 | G65: 911.2 | H65: 1.131 | I65: 1.241220369 | J65: 11555 | K65: 9691 | L65: 8883 | M65: 3.306 | N65: 148.6150306 | O65: 11.11543957 | P65: 14.74728293 | Q65: 14.78675949 | R65: 14.86834438 | S65: 9.217769239 | T65: 9.249573873 | U65: 9.315303447 | V65: 0.5 | W65: 0.75 | X65: 1 | Y65: 11555 | Z65: 9691 | AA65: 8883 | AB65: 14051 | AC65: -5344 | AD65: 9165.057143 | AE65: 0.372283549 | AF65: Gas Natural | AG65: 54.3 | AH65: 0.5250836372
A66: WAR02 | B66: 0.93 | C66: 26 | D66: 44 | E66: 1.3 | F66: 43.43 | G66: 911.2 | H66: 1.131 | I66: 1.241220369 | J66: 11640 | K66: 9739 | L66: 8966 | M66: 3.306 | N66: 146.2988463 | O66: 11.21728542 | P66: 14.83944057 | Q66: 14.87841771 | R66: 14.95990109 | S66: 9.292016838 | T66: 9.323419115 | U66: 9.389066905 | V66: =+V65 -> 0.5 | W66: 0.75 | X66: 1 | Y66: 11640 | Z66: 9739 | AA66: 8966 | AB66: 14126 | AC66: -5348 | AD66: 9236.4 | AE66: 0.3694079945 | AF66: Gas Natural | AG66: 54.3 | AH66: 0.5291710059
A67: WAR03 | B67: 0.61 | C67: 26 | D67: 44.33 | E67: 1.3 | F67: 43.75 | G67: 911.2 | H67: 1.131 | I67: 1.241220369 | J67: 11536 | K67: 9756 | L67: 8964 | M67: 3.306 | N67: 142.4492868 | O67: 11.34302104 | P67: 14.84386368 | Q67: 14.88213376 | R67: 14.96032137 | S67: 9.295580357 | T67: 9.326412981 | U67: 9.389405509 | V67: 0.5 | W67: 0.75 | X67: 1 | Y67: 11536 | Z67: 9756 | AA67: 8964 | AB67: 13943.33333 | AC67: -5144 | AD67: 9240.247619 | AE67: 0.3692541738 | AF67: Gas Natural | AG67: 54.3 | AH67: 0.5293914433
A68: WAR04 | B68: 0.68 | C68: 26 | D68: 44.55 | E68: 1.3 | F68: 43.97 | G68: 911.2 | H68: 1.131 | I68: 1.241220369 | J68: 11649 | K68: 9800 | L68: 8976 | M68: 3.306 | N68: 148.7904287 | O68: 11.23111634 | P68: 14.86991381 | Q68: 14.90949529 | R68: 14.99129902 | S68: 9.316567875 | T68: 9.348457039 | U68: 9.414362924 | V68: 0.5 | W68: 0.75 | X68: 1 | Y68: 11649 | Z68: 9800 | AA68: 8976 | AB68: 14151.16667 | AC68: -5346 | AD68: 9263.395238 | AE68: 0.3683314716 | AF68: Gas Natural | AG68: 54.3 | AH68: 0.5307176146
A69: WAR05 | B69: 0.62 | C69: 26 | D69: 44 | E69: 1.3 | F69: 43.43 | G69: 911.2 | H69: 1.131 | I69: 1.241220369 | J69: 11592 | K69: 9787 | L69: 8948 | M69: 3.306 | N69: 145.6902859 | O69: 11.2323737 | P69: 14.83946174 | Q69: 14.87827675 | R69: 14.95942117 | S69: 9.292033893 | T69: 9.323305545 | U69: 9.38868026 | V69: 0.5 | W69: 0.75 | X69: 1 | Y69: 11592 | Z69: 9787 | AA69: 8948 | AB69: 14075 | AC69: -5288 | AD69: 9240.257143 | AE69: 0.3692537932 | AF69: Gas Natural | AG69: 54.3 | AH69: 0.5293919889
A70: MOS01 | B70: 18.56 | C70: 28 | D70: 1.39 | E70: 4.9 | F70: 1.32 | G70: 37289 | H70: 0.465 | I70: 12.47016546 | J70: 10530 | K70: 9321 | L70: 8918 | M70: 21.406 | N70: 28.70014974 | O70: 116.9772733 | P70: 140.3107284 | Q70: 140.6964053 | R70: 141.0950462 | S70: 9.535136379 | T70: 9.566064352 | U70: 9.598031921 | V70: 0.5 | W70: 0.75 | X70: 1 | Y70: =+J70 -> 10530 | Z70: 9321 | AA70: 8918 | AB70: 12007.66667 | AC70: -3224 | AD70: 9060.009524 | AE70: 0.3766000456 | AF70: Diesel Oil | AG70: 72.6 | AH70: 0.6939988538
A74: 1) Consumo propio, ventas directas y pérdidas entre bornes de generador y el SMEC
A75: 2) Los valores en negrilla corresponden al 60%

Sheet Generacion
A4: GENERACION (MWh)
C7: 2010 | D7: 2011 | E7: 2012 | F7: 2013 | G7: 2014 | H7: 2015 | I7: 2016 | J7: 2017
A8: CENTRALES HIDROELECTRICAS
A9: CORANI | B9: COR1234 | C9: 280767.663 | D9: 317689.14 | E9: 325459.12 | F9: 373791.26 | G9: 371305.78 | H9: 377176.696 | I9: 214629.939 | J9: 284284.711
A10: SANTA ISABEL | B10: SIS12345 | C10: 418380.171 | D10: 477614.6 | E10: 485267.32 | F10: 555713.26 | G10: 552076.44 | H10: 560551.928 | I10: 330698.884 | J10: 431404.268
A11: ZONGO | B11: ZON1 | C11: 11345.116 | D11: 11062.147 | E11: 9730.236 | F11: 8366.923 | G11: 9230.836 | H11: 9970.278 | I11: 9497.004 | J11: 10212.422
A12: TIQUIMANI | B12: TIQ1 | C12: 8884.209 | D12: 15926.226 | E12: 12913.74 | F12: 11358.186 | G12: 10445.099 | H12: 12813.867 | I12: 6632.062 | J12: 11241.979
A13: BOTIJLACA | B13: BOT1 | C13: 7849.874 | D13: 8621.266 | E13: 8717.69 | F13: 8548.19 | G13: 6937.646 | H13: 8959.491 | I13: 5032.601 | J13: 8563.441
B14: BOT2 | C14: 6640.692 | D14: 7153.313 | E14: 7359.012 | F14: 7028.019 | G14: 5548.011 | H14: 7037.519 | I14: 3451.904 | J14: 6239.618
B15: BOT3 | C15: 21561.253 | D15: 20814.348 | E15: 22706.516 | F15: 22174.723 | G15: 20967.523 | H15: 23605.781 | I15: 18889.346 | J15: 20402.677
A16: CUTICUCHO | B16: CUT1 | C16: 7186.324 | D16: 9743.347 | E16: 9415.135 | F16: 6458.43 | G16: 5475.314 | H16: 14181.029 | I16: 4440.681 | J16: 9498.882
B17: CUT2 | C17: 6993.139 | D17: 9282.077 | E17: 8698.524 | F17: 5753.34 | G17: 4912.893 | H17: 12898.889 | I17: 5619.907 | J17: 9023.669
B18: CUT3 | C18: 6822.617 | D18: 9067.503 | E18: 8820.174 | F18: 6045.047 | G18: 5060.786 | H18: 13386.754 | I18: 5422.311 | J18: 8865.554
B19: CUT4 | C19: 5297.483 | D19: 6581.793 | E19: 6336.64 | F19: 4570.038 | G19: 3245.185 | H19: 6687.367091 | I19: 2561.439 | J19: 4531.527
B20: CUT5 | C20: 90321.68 | D20: 94885.142 | E20: 92591.82 | F20: 80968.934 | G20: 71783.653 | H20: 80462.043 | I20: 75993.779 | J20: 96164.228
A21: SANTA ROSA | B21: SRO1 | C21: 35381.828 | D21: 40391.101 | E21: 32300.108 | F21: 36699.026 | G21: 35041.322 | H21: 38808.311 | I21: 27181.952 | J21: 38544.048
B22: SRO2 | C22: 43128.714 | D22: 46044.359 | E22: 43194.46 | F22: 45291.725 | G22: 48557.09 | H22: 47305.845 | I22: 39690.658 | J22: 47225.398
A23: SAINANI | B23: SAI1 | C23: 66898.477 | D23: 71701.51 | E23: 68123.947 | F23: 70554.084 | G23: 15429.729 | H23: 23543.033 | I23: 53982.859 | J23: 69211.265
A24: CHURURAQUI | B24: CHU1 | C24: 63528.492 | D24: 66072.78 | E24: 69551.443 | F24: 71908.643 | G24: 64762.602 | H24: 71255.49 | I24: 53061.766 | J24: 68171.012
B25: CHU2 | C25: 62589.967 | D25: 67733.378 | E25: 64736.138 | F25: 72200.595 | G25: 62725.934 | H25: 67719.197 | I25: 53897.993 | J25: 66329.928
A26: HARCA | B26: HAR1 | C26: 79080.591 | D26: 83215.97 | E26: 78452.137 | F26: 86076.892 | G26: 78528.325 | H26: 81849.417 | I26: 63047.572 | J26: 79535.855
B27: HAR2 | C27: 77042.934 | D27: 78275.416 | E27: 73415.542 | F27: 79960.058 | G27: 77429.542 | H27: 80452.606 | I27: 61868.473 | J27: 81530.162
A28: CAHUA | B28: CAH1 | C28: 79039.576 | D28: 58254.009 | E28: 51281.208 | F28: 86457.891 | G28: 85493.886 | H28: 81648.602 | I28: 62691.475 | J28: 85854.238
B29: CAH2 | C29: 81435.837 | D29: 91507.437 | E29: 83285.34 | F29: 84764.018 | G29: 77185.931 | H29: 81079.113 | I29: 67549.633 | J29: 83617.593
A30: HUAJI | B30: HUA1 | C30: 95760.287 | D30: 95144.05 | E30: 95119.72 | F30: 105447.589 | G30: 99009.819 | H30: 86632.661 | I30: 79958.991 | J30: 91011.157
B31: HUA2 | C31: 93799.605 | D31: 98539.03 | E31: 94138.09 | F31: 99492.22 | G31: 99241.433 | H31: 93811.008 | I31: 82387.253 | J31: 99447.379
A32: MIGUILLA | B32: MIG1 | C32: 4114 | D32: 4554.105 | E32: 4812.643 | F32: 4552.424 | G32: 4384.409 | H32: 4376.905 | I32: 3466.108 | J32: 4191.576
B33: MIG2 | C33: 4195 | D33: 4563.411 | E33: 4781.625 | F33: 4698.227 | G33: 4197.793 | H33: 4145.267 | I33: 3329.45 | J33: 4038.616
A34: ANGOSTURA | B34: ANG1 | C34: 9271.1 | D34: 8656.585 | E34: 10232.769 | F34: 8655.151 | G34: 8364.82 | H34: 8059.284 | I34: 8299.026 | J34: 7068.212
B35: ANG2 | C35: 4843.5 | D35: 5139.198 | E35: 4981.526 | F35: 3998.696 | G35: 4087.838 | H35: 3992.585 | I35: 2863.16 | J35: 3531.556
B36: ANG3 | C36: 5760.916 | D36: 6575.517 | E36: 7386.07 | F36: 6891.603 | G36: 6808.925 | H36: 6644.116 | I36: 5656.743 | J36: 6833.087
A37: CHOQUETANGA | B37: CHO1 | C37: 12172.712 | D37: 11726.216 | E37: 12408.23 | F37: 12482.19 | G37: 11577.643 | H37: 11539.983 | I37: 9108.759 | J37: 10812.362
B38: CHO2 | C38: 14106.915 | D38: 13902.389 | E38: 15012.158 | F38: 15518.907 | G38: 14227.504 | H38: 14778.668 | I38: 11847.556 | J38: 13785.388
B39: CHO3 | C39: 11843.383 | D39: 11428.677 | E39: 12088.936 | F39: 12150.215 | G39: 11142.393 | H39: 11178.842 | I39: 9006.972 | J39: 10677.777
A40: CARABUCO | B40: CRB | C40: 43231.955 | D40: 41999.479 | E40: 43164.041 | F40: 45495.326 | G40: 43258.478 | H40: 41867.757 | I40: 36040.24 | J40: 41074.045
A41: CHOJLLA Antigua | B41: CHJ1y2 | C41: 5956.35675 | D41: 3270.249673 | E41: 5549.074273 | F41: 3766.921545 | G41: 4567.332535 | H41: 1658.238035 | I41: 38.66845 | J41: 0
A42: CHOJLLA | B42: CHJ | C42: 106123.258 | D42: 124388.162 | E42: 135330.642 | F42: 141958.0827 | G42: 127364.103 | H42: 130614.54 | I42: 50256.09 | J42: 127227.77
A43: YANACACHI | B43: YAN | C43: 190812.2633 | D43: 206067.001 | E43: 209706.071 | F43: 223487.3474 | G43: 70571.212 | H43: 211398.553 | I43: 155757.262 | J43: 179334.131
A44: KANATA | B44: KAN1 | C44: 14119.3 | D44: 19288.97 | E44: 20815.78 | F44: 16358.64 | G44: 19804.84 | H44: 17612.39 | I44: 12031.66 | J44: 10963.13
A45: KILPANI | B45: KIL123 | C45: 40270.455 | D45: 38528.401 | E45: 41587.582 | F45: 42148.482 | G45: 45154.621 | H45: 41357.006 | I45: 32860.883 | J45: 31306.787
A46: LANDARA | B46: LAN123 | C46: 14596.415 | D46: 17363.157 | E46: 17535.357 | F46: 18995.719 | G46: 22123.662 | H46: 18022.293 | I46: 14087.349 | J46: 14473.442
A47: PUNUTUMA | B47: PUN1 | C47: 16964.522 | D47: 17331.444 | E47: 18585.001 | F47: 16688.196 | G47: 17786.664 | H47: 18207.586 | I47: 16078.901 | J47: 15005.555
A48: QUEHATA | B48: QUE01 | C48: 3310.4 | D48: 4002.56 | E48: 6492.9 | F48: 7388.4 | G48: 7175.84 | H48: 8301.2 | I48: 2307.6 | J48: 3547
B49: QUE02 | D49: 51.81 | E49: 346.8 | F49: 0 | G49: 0 | I49: 2352.1 | J49: 3707.2
A50: SAN JACINTO | B50: SJA01 | H50: 2118.474 | I50: 5921.3628 | J50: 9940.8974
B51: SJA02 | H51: 1880.5392 | I51: 6106.089 | J51: 10262.133
A52: MISICUNI | B52: MIS | J52: 11172.226
A53: PARQUES EÓLICOS
A54: QOLLPANA | B54: QOL Fase I | F54: 36.5285 | G54: 8157.757 | H54: 11450.126 | I54: 13207.373 | J54: 12488.579
B55: QOL Fase II | I55: 21704.071 | J55: 47894.7
A57: PLANTAS SOLARES
A58: YUNCHARA | B58: YUN | J58: 1065.63625
A60: CENTRALES TERMOELECTRICAS
A61: GUARACACHI | B61: GCH01 | C61: 54977.58 | D61: 31424.37 | E61: 44186.28 | F61: 6585.96 | G61: 15638.4 | H61: 14091.3 | I61: 42919.2 | J61: 41459.7
B62: GCH02 | C62: 44343.57 | D62: 38362.5 | E62: 31007.91 | F62: 4921.44 | G62: 14575.08 | H62: 10209.6 | I62: 28229.76 | J62: 20603.04
B63: GCH04 | C63: 35434.59 | D63: 65185.068 | E63: 40516.368 | F63: 17730.18 | G63: 24451.464 | H63: 13814.244 | I63: 43634.928 | J63: 24144.996
B64: GCH06 | C64: 47583.18 | D64: 73021.77 | E64: 79926.345 | F64: 32721.12 | G64: 52400.7557 | H64: 49910.715 | I64: 73438.605 | J64: 47740.185
B65: GCH09 | C65: 304167.352 | D65: 362328.336 | E65: 345670.74 | F65: 479429.598 | G65: 420127.4714 | H65: 459226.692 | I65: 240047.46 | J65: 381288.42
B66: GCH10 | C66: 274064.728 | D66: 328187.052 | E66: 425317.902 | F66: 461289.348 | G66: 412122.1051 | H66: 378806.544 | I66: 386168.796 | J66: 365210.388
B67: GCH11 | C67: 386364.6331 | D67: 362853.2407 | E67: 215762.2583 | F67: 201328.7141 | G67: 301526.5525 | H67: 234237.2923 | I67: 299524.302 | J67: 149744.4793
B68: GCH12 | C68: 85.296 | D68: 1236.102 | E68: 369449.514 | F68: 616226.289 | G68: 523552.596 | H68: 544179.2599 | I68: 222713.652 | J68: 361213.692
A69: SANTA CRUZ | B69: SCZ01 | C69: 73485.585 | D69: 82841.6925 | E69: 69552.7875 | F69: 23800.9429 | G69: 44110.71 | H69: 44085.42 | I69: 76414.3515 | J69: 77133.69
B70: SCZ02 | C70: 86746.32 | D70: 105667.14 | E70: 63985.62 | F70: 16188.9 | G70: 29892.71113 | H70: 35185.5 | I70: 69334.6305 | J70: 64466.46
B71: UNA01 | G71: 10615.625 | H71: 16947.5075 | I71: 10655.04975 | J71: 11162.567
A72: EASBA | B72: SBU01 | I72: 708.844 | J72: 751.153
A73: ARANJUEZ | B73: ARJ01 | C73: 0 | D73: 1295.25873 | E73: 6370.205515 | F73: 1574.993684 | G73: 5457.598282 | H73: 903.1293569 | I73: 2065.398746 | J73: 511.0025
B74: ARJ02 | C74: 7078.176123 | D74: 6630.80579 | E74: 0 | F74: 0 | G74: 1826.328269 | H74: 911.2479539 | I74: 2494.435346 | J74: 148.1945
B75: ARJ03 | C75: 6933.803202 | D75: 3921.550401 | E75: 7512.44944 | F75: 1769.8755 | G75: 5453.138 | H75: 742.6815 | I75: 3046.812 | J75: 740.5125
B76: ARJ08 | C76: 128803.56 | D76: 132236.64 | E76: 116890.92 | F76: 106260.78 | G76: 105427.86 | H76: 83446.76 | I76: 101154.24 | J76: 139685.16
B77: ARJ09 | C77: 8515.644332 | D77: 9389.035841 | E77: 9982.834451 | F77: 5243.73067 | G77: 10782.3011 | H77: 8423.39897 | I77: 10825.28304 | J77: 697.12325
B78: ARJ11 | C78: 5377.490046 | D78: 6762.75858 | E78: 8208.257779 | F78: 9655.36312 | G78: 7515.1433 | H78: 4874.09304 | I78: 10874.30593 | J78: 657.711895
B79: ARJ12 | C79: 5023.210781 | D79: 6196.934516 | E79: 11548.43109 | F79: 11349.07458 | G79: 9975.93413 | H79: 7073.216074 | I79: 0 | J79: 0
B80: ARJ13 | C80: 2147.392315 | D80: 8851.283968 | E80: 10087.29019 | F80: 9758.3664 | G80: 4970.5612 | H80: 5371.6202 | I80: 0 | J80: 0
B81: ARJ14 | C81: 8526.900641 | D81: 10123.33607 | E81: 9538.652815 | F81: 2570.0208 | G81: 7007.9094 | H81: 0 | I81: 0 | J81: 0
B82: ARJ15 | C82: 7797.829538 | D82: 4892.938408 | E82: 11580.99053 | F82: 10493.6892 | G82: 9947.2014 | H82: 7564.2672 | I82: 8339.7396 | J82: 474.077
A83: KARACHIPAMPA | B83: KAR1 | C83: 80691.73504 | D83: 79540.578 | E83: 60267.49772 | F83: 84986.5836 | G83: 61003.53232 | H83: 79662.39755 | I83: 76545.15521 | J83: 41016.303
A84: KENKO | B84: KEN01 | C84: 46977.26562 | D84: 50444.30312 | E84: 50792.9475 | F84: 25340.75831 | G84: 43520.74519 | H84: 0 | I84: 1793.82 | J84: 18.81
B85: KEN02 | C85: 47451.323 | D85: 50578.20975 | E85: 52201.957 | F85: 20555.56487 | G85: 46932.1795 | H85: 29966.794 | I85: 14728.66919 | J85: 14455.24559
A86: VALLE HERMOSO | B86: VHE12345678 | C86: 412298.62 | D86: 375505.48 | E86: 441361.193 | F86: 438893.555 | G86: 458878.518 | H86: 260568.359 | I86: 431717.9446 | J86: 498992.928
A87: CARRASCO | B87: CAR123 | C87: 743118.8202 | D87: 616986.2671 | E87: 772580.2 | F87: 667630.61 | G87: 815783.94 | H87: 516330.15 | I87: 440398.86 | J87: 552699.29
A88: C.EL ALTO | B88: ALT01 | E88: 57810.7089 | F88: 107684.098 | G88: 108265.7625 | H88: 62901.0717 | I88: 100635.927 | J88: 49236.5229
B89: ALT02 | F89: 103575.9891 | G89: 74350.10655 | H89: 230006.7025 | I89: 213864.514 | J89: 148687.6958
A90: BULO BULO | B90: BUL01 | C90: 320717 | D90: 327166 | E90: 106480 | F90: 287973.534 | G90: 269807.618 | H90: 253280.231 | I90: 223504.631 | J90: 237695.821
B91: BUL02 | C91: 331746 | D91: 326073 | E91: 289542 | F91: 202260.81 | G91: 173568.66 | H91: 33037.909 | I91: 15850.489 | J91: 77027.986
B92: BUL03 | F92: 917.24762 | G92: 265758.5813 | H92: 313954.442 | I92: 125500.576 | J92: 239710.459
A93: GUABIRA | B93: GBE | C93: 58156.17 | D93: 64040.52 | E93: 64494.2 | F93: 79491 | G93: 65694 | H93: 62146 | I93: 50538 | J93: 29748
B94: IAG | J94: 3137
A95: ENTRE RIOS | B95: ERI01 | C95: 94768 | D95: 186730 | E95: 193238 | F95: 176801 | G95: 173128 | H95: 75240 | I95: 152450 | J95: 36192
B96: ERI02 | C96: 123773.2823 | D96: 193364 | E96: 193432 | F96: 175773 | G96: 165138 | H96: 85293 | I96: 168623 | J96: 52744
B97: ERI03 | C97: 109541.1268 | D97: 170825 | E97: 196674 | F97: 195325 | G97: 173443 | H97: 74301 | I97: 182321 | J97: 60409
B98: ERI04 | C98: 77401.001 | D98: 187411 | E98: 183871 | F98: 186743 | G98: 193663 | H98: 89367 | I98: 182872 | J98: 46175
A99: DEL SUR | B99: SUR01 | G99: 84605.7 | H99: 283458 | I99: 327520.8056 | J99: 321801.0224
B100: SUR02 | G100: 129537 | H100: 256045 | I100: 313178.5303 | J100: 283832.3403
B101: SUR03 | G101: 108702.3 | H101: 285112 | I101: 329847.8392 | J101: 326287.4248
B102: SUR04 | G102: 73180 | H102: 279769 | I102: 310140.643 | J102: 335050.7928
A103: WARNES | B103: WAR01 | H103: 198822 | I103: 327476 | J103: 341340.336
B104: WAR02 | H104: 104963 | I104: 303848 | J104: 232234.96
B105: WAR03 | H105: 135385 | I105: 334360 | J105: 332215.632
B106: WAR04 | H106: 75984 | I106: 328445 | J106: 319457.856
B107: WAR05 | H107: 91678 | I107: 330964 | J107: 332882.232
A108: ENDE GEN. | B108: MOX | D108: 17193.9211 | E108: 78175.6298 | F108: 59999.3057 | G108: 92959.208 | H108: 86494.6717 | I108: 89033.7611 | J108: 89110.9052
A109: Total Generación bruta | C109: 6085526.165 | D109: 6611423.366 | E109: 6940448.356 | F109: 7347749.589 | G109: 7836447.911 | H109: 8334811.495 | I109: 8759264.864 | J109: 8981304.931
A110: Unidades MDL
A111: =+A61 -> GUARACACHI | B111: =+B65 -> GCH09 | C111: 304167.352 | D111: 362328.336 | E111: 345670.74 | F111: 479429.598 | G111: 420127.4714 | H111: 459226.692 | I111: 240047.46 | J111: 381288.42
B112: GCH10 | C112: 274064.728 | D112: 328187.052 | E112: 425317.902 | F112: 461289.348 | G112: 412122.1051 | H112: 378806.544 | I112: 386168.796 | J112: 365210.388
B113: =+B68 -> GCH12 | C113: 85.296 | D113: 1236.102 | E113: 369449.514 | F113: 616226.289 | G113: 523552.596 | H113: 544179.2599 | I113: 222713.652 | J113: 361213.692
A114: =+A42 -> CHOJLLA | B114: CHJ | C114: 106123.258 | D114: 124388.162 | E114: 135330.642 | F114: 141958.0827 | G114: 127364.103 | H114: 130614.54 | I114: 50256.09 | J114: 127227.77
A115: YANACACHI | B115: YAN | C115: 190812.2633 | D115: 206067.001 | E115: 209706.071 | F115: 223487.3474 | G115: 70571.212 | H115: 211398.553 | I115: 155757.262 | J115: 179334.131
A116: Total Unidades MDL | C116: 875252.8973 | D116: 1022206.653 | E116: 1485474.869 | F116: 1922390.665 | G116: 1553737.487 | H116: 1724225.589 | I116: 1054943.26 | J116: 1414274.401
A119: Unidades LCMR
A120: Hidroelectricas | C120: 2151428.98 | D120: 2324157.274 | E120: 2322431.265 | F120: 2514863.619 | G120: 2232992.857 | H120: 2439591.151 | I120: 1715604.461 | J120: 2229863.901
A121: Eolicas | C121: 0 | D121: 0 | E121: 0 | F121: 36.5285 | G121: 8157.757 | H121: 11450.126 | I121: 34911.444 | J121: 60383.279
A122: Solares | C122: 0 | D122: 0 | E122: 0 | F122: 0 | G122: 0 | H122: 0 | I122: 0 | J122: 1065.63625
A123: Biomasa | C123: 58156.17 | D123: 64040.52 | E123: 64494.2 | F123: 79491 | G123: 76309.625 | H123: 79093.5075 | I123: 61901.89375 | J123: 44798.72
A124: Total Unidades LCMR | C124: 2209585.15 | D124: 2388197.794 | E124: 2386925.465 | F124: 2594391.147 | G124: 2317460.239 | H124: 2530134.785 | I124: 1812417.799 | J124: 2336111.537
